{"text_format":"1","workbook":"xlsx","n_sheets":14,"sheets":["Modified Method","Main Menu","CalsL_W","Tracer Database","BF vs vel","Data","Length-WidthGraph","Length-WidthGraph2","Length-WidthGraph3","Length-WidthGraph4","Predicted t10","Definition","Reference","SRChart"],"not_rendered":{"charts":17,"images":73,"macros":1,"external_links":0,"defined_names":6,"comments":0,"pivot_tables":0},"unopened":[{"sheet":"BF vs vel","index":4,"reason":"not_a_worksheet"},{"sheet":"Length-WidthGraph","index":6,"reason":"not_a_worksheet"},{"sheet":"Length-WidthGraph2","index":7,"reason":"not_a_worksheet"},{"sheet":"Length-WidthGraph3","index":8,"reason":"not_a_worksheet"},{"sheet":"Length-WidthGraph4","index":9,"reason":"not_a_worksheet"},{"sheet":"SRChart","index":13,"reason":"not_a_worksheet"}],"bounds":{"document_bytes":16777216,"sheet_cells":100000,"rows_first":2000,"rows_last":500,"rows_between":2000,"halvings":0,"cell_chars":16384,"cell_head_chars":4096},"cells_cut":0,"cells_raw":0,"read":"whole","date_system":"1900"}

{"sheet":"Modified Method","index":0,"n_rows":23,"n_cols":9,"rows_kept":23,"cut":false,"hidden":true,"merged":[]}
[]
[]
[]
[null,null,null,0.25]
[]
[null,null,"CSTFR","t10/T","Dose","DPEC"]
[null,null,1.7,0.2,10,2.87,null,{"$f":"3.49996/4*F7*D7^-0.8981","v":10.656876852986239},{"$f":"5.314*F7*EXP(-2.2491*D7)","v":9.7263322957070546}]
[null,null,2.4,0.3,10,3.71,null,9.5713765086224942,10.040698905646581]
[null,null,3.5,0.4,8.4,4,null,7.9699023948185905,8.6451563836053573]
[null,null,5.0999999999999996,0.5,6.79,4,null,6.5225605596767071,6.9039189107619769]
[null,null,8,0.6,5.47,4,null,5.5373942192089274,5.5133874057809829]
[null,null,16,0.7,4.53,4,null,4.8214817942514596,4.4029255092843238]
[]
[]
[]
[]
[null,null,"CSTFR","t10/T","Dose","DPEC","DPEC"]
[null,null,1.7,0.2,13.95,4,10,{"$f":"5.314*G18*EXP(-2.2491*D18)","v":33.889659566923534}]
[null,null,2.4,0.3,10.78,4,4,10.825551380751032]
[null,null,3.5,0.4,8.4,4,20,43.22578191802679]
[null,null,5.0999999999999996,0.5,6.79,4,4,6.9039189107619769]
[null,null,8,0.6,5.47,4,4,5.5133874057809829]
[null,null,16,0.7,4.53,4,4,4.4029255092843238]

{"sheet":"Main Menu","index":1,"n_rows":53,"n_cols":6,"rows_kept":53,"cut":false,"hidden":false,"merged":[]}
[null," Copyright © 2001-2022 State Water Resources Control Board, Divison of Drinking Water, all rights reserved."]
[null," (707/576-2732), guy.schott@waterboards.ca.gov"]
[null,"Main Menu"]
[]
[]
[]
[null,{"$f":"MID(CELL(\"filename\",A2),FIND(\"[\",CELL(\"filename\",A2))+1,FIND(\"]\",CELL(\"filename\",A2))-FIND(\"[\",CELL(\"filename\",A2))-1)","v":"tracer_studies_db_1_31_ada.xlsm"}]
[null,"Chlorine Contact Chamber Design and Flow Evaluation"]
[null,"Version 1.31"]
[]
[]
[]
[]
[]
[null,null,null,null,null,"Displays different contact tanks with and without baffles "]
[null,null,null,null,null,"and related flow parameters."]
[]
[null,null,null,null,null,"Graph plot:  Length-to-Width (L:W) ratio vs. t10/HRT (baffle factor, BF). "]
[null,null,null,null,null,"Individual data points are associated to a tracer study."]
[null,null,null,null,null,"It may be used to predict t10/HRT based on L:W ratio and to develop a"]
[null,null,null,null,null,"best-fit curve for individual data points."]
[]
[null,null,null,null,null,"Graph plot:  Length-to-Width ratio vs. t10/HRT.  Individual data points"]
[null,null,null,null,null,"are not associated to the person or company that conducted the test."]
[null,null,null,null,null,"This graph may be used to develop the best-fit curve."]
[]
[null,null,null,null,null,"Graph plot:  Length-to-Width ratio vs. t10/HRT for all data points"]
[null,null,null,null,null,"excluding Marske and Boyle results."]
[null,null,null,null,null,"This graph may be used to develop the best-fit curve."]
[]
[null,null,null,null,null,"Graph plot:  Length-to-Width ratio vs. t10/HRT for under-and-over flow"]
[null,null,null,null,null,"configurations."]
[]
[null,null,null,null,null,"Graph plot:  Log (Length-to-Width ratio * horizontal velocity) "]
[null,null,null,null,null,"vs. t10/HRT."]
[]
[null,null,null,null,null,"The short-circuiting index t10/HRT is calculated for different L:W ratios"]
[null,null,null,null,null,"based on data points as a whole and data points from test conducted by "]
[null,null,null,null,null,"individual person(s) or Company."]
[null,null,null,null,null,"New:  predicted baffling factor (t10/HRT) when considering horizontal velocity."]
[]
[null,null,null,null,null,"Defines performance parameters commonly used in conventional"]
[null,null,null,null,null,"analysis of contact basins."]
[]
[null,null,null,null,null,"List the references of person(s) or company that conducted the tracer"]
[null,null,null,null,null,"studies listed in this data base."]
[]
[null,null,"For questions and ",null,null,"Guy Schott, P.E."]
[null,null,"comments, you may",null,null,"Associate Civil Engineer"]
[null,null,"contact:",null,null,"Mendocino District"]
[null,null,null,null,null,"50 D Street, Suite 200"]
[null,null,null,null,null,"Santa Rosa, CA 95404"]
[null,null,null,null,null,"707-576-2732, email: guy.schott@waterboards.ca.gov"]

{"sheet":"CalsL_W","index":2,"n_rows":36,"n_cols":25,"rows_kept":36,"cut":false,"hidden":true,"merged":[]}
[]
[]
[null,null,"Yuba City",null,null,null,null,null,null,null,"Demare",null,null,null,"Brooktrails",null,null,null,"Cal Water",null,null,null,"Brooktrails"]
[null,null,"Degrees",180,24,null,null,180,24,null,"Degrees",180,40,null,"Degrees",180,30,null,"Degrees",180,30,null,"Degrees",180,30]
[null,null,"Diameter",194,194,null,null,100,100,null,"Diameter",10,10,null,"Diameter",190,190,null,"Diameter",45,45,null,"Diameter",25,25]
[null,null,"N Baffles",1,null,null,null,null,null,null,"N Baffles",2,null,null,"N Baffles",2,null,null,"N Baffles",3,null,null,"N Baffles",5]
[null,null,"Cal Area",{"$f":"PI()*(D5^2)/4/(D6+1)","v":14779.622638813182},null,null,null,{"$f":"PI()*(H5^2)/4/2","v":3926.9908169872415},null,null,"Cal Area",{"$f":"PI()*(L5^2)/4/(L6+1)","v":26.179938779914945},{"$f":"L7*0.9","v":23.56194490192345},null,"Cal Area",{"$f":"PI()*(P5^2)/4/(P6+1)","v":9450.9578995492939},{"$f":"P7*0.9","v":8505.8621095943654},null,"Cal Area",{"$f":"PI()*(T5^2)/4/(T6+1)","v":397.60782021995817},{"$f":"T7*0.9","v":357.84703819796238},null,"Cal Area",{"$f":"PI()*(X5^2)/4/(X6+1)","v":81.812308687234193},{"$f":"X7*0.9","v":73.631077818510775}]
[null,null,"Cal width",{"$f":"D7/D5","v":76.18362184955248},null,null,null,{"$f":"H7/H5","v":39.269908169872416},null,null,"Cal width",{"$f":"L7/L5","v":2.6179938779914944},{"$f":"M7/(M5*0.9)","v":2.6179938779914944},null,"Cal width",{"$f":"P7/P5","v":49.741883681838388},{"$f":"Q7/(Q5*0.9)","v":49.741883681838395},null,"Cal width",{"$f":"T7/T5","v":8.8357293382212934},{"$f":"U7/(U5*0.9)","v":8.8357293382212934},null,"Cal width",{"$f":"X7/X5","v":3.2724923474893677},{"$f":"Y7/(Y5*0.9)","v":3.2724923474893677}]
[null,null,"Curcoference",null,{"$f":"PI()*E5","v":609.46897479641984},null,null,null,{"$f":"PI()*I5","v":314.15926535897933},null,"Curcoference",null,{"$f":"PI()*M5","v":31.415926535897931},null,"Curcoference",null,{"$f":"PI()*Q5","v":596.90260418206071},null,"Curcoference",null,{"$f":"PI()*U5","v":141.37166941154069},null,"Curcoference",null,{"$f":"PI()*Y5","v":78.539816339744831}]
[null,null,null,null,{"$f":"PI()*E5*(360-E4)/360","v":568.83770980999191},null,null,null,{"$f":"PI()*I5*(360-24)/360","v":293.21531433504737},null,null,null,{"$f":"PI()*M5*(360-M4)/360","v":27.925268031909273},null,null,null,{"$f":"PI()*Q5*(360-Q4)/360","v":547.1607205002224},null,null,null,{"$f":"PI()*U5*(360-U4)/360","v":129.59069696057895},null,"L (total)",150.69999999999999,{"$f":"PI()*Y5*(360-Y4)/360","v":71.994831644766094}]
[null,null,"L:W",{"$f":"E10/D8","v":7.4666666666666677},null,null,null,{"$f":"I10/H8","v":7.4666666666666668},null,null,"L:W",{"$f":"M10/L8","v":10.666666666666666},null,null,"L:W",{"$f":"Q10/P8","v":11.000000000000002},null,null,"L:W",{"$f":"U10/T8","v":14.666666666666664},null,null,"L:W",{"$f":"X10/X8","v":46.050527853981365}]
[null,null,null,{"$f":"E9/D8","v":8},null,null,null,{"$f":"I9/H8","v":8},null,null,null,{"$f":"M9/L8","v":12},null,null,null,{"$f":"Q9/P8","v":12.000000000000002},null,null,null,{"$f":"U9/T8","v":16},null,null,null,{"$f":"Y9/X8","v":24.000000000000004}]
[null,null,null,null,null,null,null,null,null,null,null,null,null,null,null,null,null,null,null,null,null,null,"surface area",{"$f":"PI()*X5^2/4","v":490.87385212340519}]
[]
[null,null,"Flow",12,"MGD",12.1,"MGD",24.9,"MGD",null,"Flow",2.8799999999999999E-2,"MGD",null,"Flow",2.8799999999999999E-2,"MGD",null,"Flow",1.44,"MGD",null,"Flow",1.44,"MGD"]
[null,null,"Flow",{"$f":"D15*1000000/24/60","v":8333.3333333333339},"gpm",{"$f":"F15*1000000/24/60","v":8402.7777777777774},"gpm",{"$f":"H15*1000000/24/60","v":17291.666666666668},"gpm",null,"Flow",20,"gpm",null,"Flow",5556,"gpm",null,"Flow",1000,"gpm",null,"Flow",1000,"gpm"]
[null,null,"Flow",{"$f":"D16/7.4805","v":1114.0075306909075},"ft3/min",{"$f":"F16/7.4805","v":1123.2909267799982},"ft3/min",{"$f":"H16/7.4805","v":2311.565626183633},"ft3/min",null,"Flow",{"$f":"L16/7.4805","v":2.6736180736581781},"ft3/min",null,"Flow",{"$f":"P16/7.4805","v":742.73110086224176},"ft3/min",null,"Flow",{"$f":"T16/7.4805","v":133.68090368290891},"ft3/min",null,"Flow",{"$f":"X16/7.4805","v":133.68090368290891},"ft3/min"]
[null,null,"Diameter",194,"ft",194,"ft",194,"ft",null,"Diameter",10,"ft",null,"Diameter",190,"ft",null,"Diameter",45,"ft",null,"Diameter",25,"ft"]
[null,null,"Gal/ft",{"$f":"PI()*D18^2/4*7.4805","v":221117.93429928401},null,{"$f":"PI()*F18^2/4*7.4805","v":221117.93429928401},null,{"$f":"PI()*H18^2/4*7.4805","v":221117.93429928401},null,null,"Gal/ft",{"$f":"PI()*L18^2/4*7.4805","v":587.51709612946127},null,null,"Gal/ft",{"$f":"PI()*P18^2/4*7.4805","v":212093.6717027355},null,null,"Gal/ft",{"$f":"PI()*T18^2/4*7.4805","v":11897.221196621589},null,null,"Gal/ft",{"$f":"PI()*X18^2/4*7.4805","v":3671.9818508091325}]
[null,null,"Max Ht",18,null,18,null,18,null,null,"Max Ht",8.1999999999999993,null,null,"Max Ht",14.14,null,null,"Max Ht",13.5,null,null,"Max Ht",13.5]
[null,null,"Max Vol",{"$f":"D20*D19","v":3980122.8173871124},"gal",{"$f":"F20*F19","v":3980122.8173871124},"gal",{"$f":"H20*H19","v":3980122.8173871124},"gal",null,"Max Vol",{"$f":"L20*L19","v":4817.6401882615819},"gal",null,"Max Vol",{"$f":"P20*P19","v":2999004.51787668},"gal",null,"Max Vol",{"$f":"T20*T19","v":160612.48615439146},"gal",null,"Max Vol",{"$f":"X20*X19","v":49571.754985923289},"gal"]
[null,"Run 1, 38% HT","% of Ht",0.38,null,0.9,null,0.9,null,null,"% of Ht",1,null,null,"% of Ht",0.41349999999999998,null,null,"% of Ht",0.82499999999999996,null,null,"% of Ht",0.82499999999999996]
[null,null,"Tank Level",{"$f":"D22*D20","v":6.84},"water level",{"$f":"F22*F20","v":16.2},"water level",{"$f":"H22*H20","v":16.2},"water level",null,"Tank Level",{"$f":"L22*L20","v":8.1999999999999993},"water level",null,"Tank Level",{"$f":"P22*P20","v":5.8468900000000001},"water level",null,"Tank Level",{"$f":"T22*T20","v":11.137499999999999},"water level",null,"Tank Level",{"$f":"X22*X20","v":11.137499999999999},"water level"]
[null,null,"Working Vol",{"$f":"D23*D19","v":1512446.6706071026},"gallons",{"$f":"F23*F19","v":3582110.5356484009},"gallons",{"$f":"H23*H19","v":3582110.5356484009},"gallons",null,"Working Vol",{"$f":"L23*L19","v":4817.6401882615819},"gallons",null,"Working Vol",{"$f":"P23*P19","v":1240088.3681420072},"gallons",null,"Working Vol",{"$f":"T23*T19","v":132505.30107737295},"gallons",null,"Working Vol",{"$f":"X23*X19","v":40896.697863386711},"gallons"]
[null,null,"Avg section",{"$f":"$D$8*D23","v":521.09597345093891},"ft2",{"$f":"$D$8*F23","v":1234.1746739627501},"ft2",{"$f":"$D$8*H23","v":1234.1746739627501},"ft2",null,"Avg section",{"$f":"L8*L23","v":21.467549799530254},"ft2",null,"Avg section",{"$f":"P8*P23","v":290.83532228050404},"ft2",null,"Avg section",{"$f":"T8*T23","v":98.407935504439649},"ft2",null,"Avg section",{"$f":"X8*X23","v":36.44738352016283},"ft2"]
[null,null,"Avg ft/min",{"$f":"D17/D25","v":2.137816424320905},null,{"$f":"F17/F25","v":0.91015554805810361},null,{"$f":"H17/H25","v":1.8729647228633706},null,null,"Avg ft/min",{"$f":"L17/L25","v":0.12454230215488687},null,null,"Avg ft/min",{"$f":"P17/P25","v":2.5537857473374386},null,null,"Avg ft/min",{"$f":"T17/T25","v":1.358436217543431},null,null,"Avg ft/min",{"$f":"X17/X25","v":3.6677777873672639}]
[null,null,"LW * ft/min",{"$f":"D26*$D$12","v":17.10253139456724},null,{"$f":"F26*$D$12","v":7.2812443844648289},null,{"$f":"H26*$D$12","v":14.983717782906965},null,null,"LW * ft/min",{"$f":"L26*L12","v":1.4945076258586425},null,null,"LW * ft/min",{"$f":"P26*P12","v":30.645428968049266},null,null,"LW * ft/min",{"$f":"T26*T12","v":21.734979480694896},null,null,"LW * ft/min",{"$f":"X26*X12","v":88.026666896814348}]
[]
[null,null,"T",{"$f":"D24/D16","v":181.49360047285231},"min",null,null,null,null,null,"T",{"$f":"L24/L16","v":240.88200941307909},"min",null,"T",{"$f":"P24/P16","v":223.19805042152757},"min",null,"T",{"$f":"T24/T16","v":132.50530107737293},"min",null,"T",{"$f":"X24/X16","v":40.896697863386713},"min"]
[]
[]
[]
[null,null,null,{"$f":"D16/D24","v":5.5098361451569712E-3},null,null,null,null,null,null,null,{"$f":"L16/L24","v":4.1514100718295626E-3},null,null,null,null,null,null,null,null,null,null,"For 5 baffles, it covers 276 degrees in length"]
[null,null,null,{"$f":"D25/D16","v":6.2531516814112661E-2},{"$f":"D27*D34","v":1.0694472294632711},null,null,null,null,null,null,{"$f":"L25/L16","v":1.0733774899765127},{"$f":"L27*L34","v":1.604170844194907}]
[null,null,null,null,null,null,null,null,null,null,null,null,null,null,null,null,null,null,null,null,null,null,"L:W should be 38"]
[null,null,null,null,null,null,null,null,null,null,null,null,null,null,null,null,null,null,null,null,null,null,"width is 3.938"]

{"sheet":"Tracer Database","index":3,"n_rows":1246,"n_cols":19,"rows_kept":1246,"cut":false,"hidden":false,"merged":[]}
[null,{"$f":"'Main Menu'!B1","v":" Copyright © 2001-2022 State Water Resources Control Board, Divison of Drinking Water, all rights reserved."}]
[]
[]
[null,"Plate \nNo.","Configuration - Plan View","Brief \nDescription",null,"Plant \nFlow \n(MGD)","Date \nof \nTest","L/W","Ave\nVelocity\nft/min","Log of \n(L:W * Vel)","HRT\nmin","t10/HRT","t50/HRT","Morril \nIndex \nt90/t10","Dispersion \nIndex d","Type of Inlet","Type of Outlet","Tracer","Reference"]
[]
[]
[null,1,null,null,null,11,"5/8/17",1,{"$f":"7639/7.4805/(17.5*38)","v":1.5356216890732948},{"$f":"LOG(1*I7)","v":0.18628423745053094},27.1,0.32,0.87,2.95,null,"Horizontal overflow weir","pumped","Fluoride",39]
[null,null,null,null,null,{"$f":"FIXED(F7*1000000/24/60,0) & \" gpm\"","v":"7,639 gpm"}]
[]
[null,null,null,"Pipeline volume: 9,400 gallons (100-ft linear, 4-Diam.)"]
[null,null,null,"Influent weir & channel volume: 8,528 gallons"]
[null,null,null,"Clearwell basin volume/ft:  10,800 gal/ft"]
[null,null,null,"Total working volume during tracer study:  206,960 gallons"]
[null,null,null,"17.5 ft operating level"]
[]
[]
[]
[null,null,null,null,null,0.7,"3/21/70",24.4,null,null,44,0.61,0.91,2.15,7.1999999999999995E-2,"Unbaffled Pipe Entrance","90o V-Notch Weirs","Rhodamine B Dye",1]
[null,null,null,"Cross Baffled",null,{"$f":"FIXED(F18*1000000/24/60,0) & \" gpm\"","v":"486 gpm"}]
[null,{"$f":"1+B7","v":2},null,"Serpentine Basin",null,1.1000000000000001,"4/21/71",21.7,null,null,50,0.55000000000000004,0.82,2.19,6.5000000000000002E-2,"Unbaffled Pipe Entrance","Sharpcrested Weir","Rhodamine B Dye",1]
[null,null,null,null,null,{"$f":"FIXED(F20*1000000/24/60,0) & \" gpm\"","v":"764 gpm"}]
[null,null,null,null,null,0.5,"5/27/70",12.5,null,null,28,0.51,0.82,2.7,0.11799999999999999,"Unbaffled Pipe Entrance","90o V-Notch Weirs","Rhodamine B Dye",1]
[null,null,null,null,null,{"$f":"FIXED(F22*1000000/24/60,0) & \" gpm\"","v":"347 gpm"}]
[]
[]
[]
[]
[]
[]
[null,null,null,"Baffled",null,2,"10/29/97",9,1.6,{"$f":"LOG(H30*I30)","v":1.1583624920952498},69,0.31,0.78,5.0999999999999996,0.2039,"Baffled pipe entrance","Unbaffled pipe outlet","Fluoride",7]
[null,null,null,"Serpentine Basin",null,{"$f":"FIXED(F30*1000000/24/60,0) & \" gpm\"","v":"1,389 gpm"}]
[null,{"$f":"1+B20","v":3},null,"Water depth 10 ft"]
[null,null,null,"95.8K gallons operating volume"]
[]
[null,null,null,"Tracer Test: Step-Dose"]
[]
[]
[]
[]
[]
[]
[]
[]
[null,{"$f":"1+B32","v":4},null,"Single Baffle Basin",null,16,"Pre 1993",6.9,0.84,{"$f":"LOG(6.9*I44)","v":0.76312837679913703},35,0.27,"-",5.59,0.28999999999999998,"Unbaffled Pipe Entrance","Unbaffled pipe outlet","Fluoride",2]
[null,null,null,"Water depth 15 ft",null,{"$f":"FIXED(F44*1000000/24/60,0) & \" gpm\"","v":"11,111 gpm"},null,null,null,null,null,null,null,null,null,"90o vertical bend upward","about midway of basin"]
[null,null,null,null,null,null,null,null,null,null,null,null,null,null,null,"near top"]
[]
[]
[]
[]
[]
[]
[]
[]
[]
[null,null,null,"Single Baffle Basin",null,52,"7/29/19",5,"-","-",185,0.27,"-","-",null,"Bottom, 72-in diamter","Bottom, 72-in diamter","Fluoride",50]
[null,null,null,"22-ft Water Depth",null,{"$f":"FIXED(F56*1000000/24/60,0) & \" gpm\"","v":"36,111 gpm"}]
[null,null,null,"Operating Volume: 6,695,000 gallons"]
[null,{"$f":"1+B44","v":5},null,"Tracer Test: Modified Step-Dose"]
[]
[]
[]
[]
[]
[]
[]
[]
[]
[]
[null,null,null,"Baffled"]
[null,null,null,"Serpentine Basin"]
[null,null,null,"Length: 52.7 ft",null,4.032,"9/15/01",16.5,0.84,{"$f":"LOG(16.5*I72)","v":1.1417632302757879},28,0.39,0.71,3.8,9.4820000000000002E-2,"Unbaffled pipe entrance","Unbaffled pipe outlet","Zinc",14]
[null,{"$f":"1+B59","v":6},null,"Depth: 8.45 ft water",null,{"$f":"FIXED(F72*1000000/24/60,0) & \" gpm\"","v":"2,800 gpm"}]
[null,null,null,"Width: 23.5 ft"]
[null,null,null,"8, 6.8 & 3.7 ft channels"]
[null,null,null,"78,260 gal operating volume"]
[null,null,null,"Tracer Test: Step-Dose"]
[]
[null,null,null,"Channel Width: 6'-5\"",null,0.99199999999999999,"7/12/19",20,1.79,{"$f":"LOG(H79*I79)","v":1.5538830266438743},63.1,0.6,0.87,2.2599999999999998,null,"Perforated baffled wall","Perforated baffled wall","Fluoride",49]
[null,null,null,"8-ft Depth",null,{"$f":"FIXED(F79*1000000/24/60,0) & \" gpm\"","v":"689 gpm"}]
[null,{"$f":"1+B73","v":7},null,"Perforated Baffle Walls"]
[null,null,null,"Baffle Walls (3-in Dia holes)"]
[null,null,null,"Operating Volume: 43,500 gallons"]
[null,null,null,"Tracer Test: Slug-Dose"]
[]
[]
[]
[]
[]
[]
[null,null,null,"Baffled Serpentine Basin"]
[null,null,null,"Test 1: 8.8 MG Vol, 12.2 ft Depth",null,34.9,"5/1/14",21,3.58,{"$f":"LOG(21*I92)","v":1.8761023213777936},364,0.59,"-","-","-","Unbaffled pipe entrance","Unbaffled pipe outlet","Fluoride",32]
[null,{"$f":"1+B81","v":8},null,"Test 2: 7.9 MG Vol, 11 ft Depth",null,50,"2014-06-24",21,{"$f":"$I$92/F92*F93","v":5.1289398280802301},{"$f":"LOG(21*I93)","v":2.0322468987546327},223,0.53]
[null,null,null,"Test 3: 11.2 MG Vol, 15.5 ft Depth",null,65,"2014-09-09",21,{"$f":"$I$92/F93*F94","v":4.6539999999999999},{"$f":"LOG(21*I94)","v":1.9900456736846304},241,0.66]
[]
[null,null,null,"Tracer Test: Modified Step-Dose"]
[]
[]
[]
[]
[]
[null,null,null,"Tanks in Series"]
[null,null,null,"Baffled followed by"]
[null,null,null,"none baffled tank"]
[null,{"$f":"1+B93","v":9},null,"Test 1: 12.2 & 20.3 ft depths",null,34.9,"5/1/14","-","-","-",706,0.55000000000000004,"-","-","-","Unbaffled pipe entrance","Unbaffled pipe outlet","Fluoride",32]
[null,null,null,"Test 2: 11 & 18.5 ft depths",null,50,"2014-06-24",null,null,null,442,0.55000000000000004]
[null,null,null,"Test 3: 15.5 & 23 ft depths",null,65,"2014-09-09",null,null,null,457,0.59]
[]
[null,null,null,"Tracer Test: Modified Step-Dose"]
[]
[]
[]
[]
[]
[null,null,null,"Longitudinal Baffled",null,1.5,"5/15/70",70,null,null,83,0.63,0.76,1.43,1.9E-2,"Unbaffled pipe entrance","Sharpcrested Weir","Rhodamine B Dye",1]
[null,{"$f":"1+B105","v":10},null,"Serpentine Basin",null,{"$f":"FIXED(F115*1000000/24/60,0) & \" gpm\"","v":"1,042 gpm"}]
[null,null,null,null,null,1.5,"5/16/70",70,null,null,83,0.56999999999999995,0.71,1.52,2.4E-2,"Unbaffled pipe entrance","Sharpcrested Weir","Rhodamine B Dye",1]
[null,null,null,null,null,{"$f":"FIXED(F117*1000000/24/60,0) & \" gpm\"","v":"1,042 gpm"}]
[]
[]
[]
[null,null,null,"Baffled Concrete",null,4.32,"2007-10-09",76,6.26,{"$f":"LOG(76*I122)","v":2.677387925491221},35.4,0.7,0.83,1.8,null,"24-in Diameter",null,"Fluoride",24]
[null,null,null,"Serpentine Basin",null,{"$f":"FIXED(F122*1000000/24/60,0) & \" gpm\"","v":"3,000 gpm"},null,null,null,null,null,null,null,null,null,"water splashes against wall"]
[null,null,null,"1st channel 4.5-ft wide",null,4.32,"2007-10-09",76,null,null,35.4,0.69,null,null,null,null,null,"Fluoride",24]
[null,{"$f":"1+B116","v":11},null,"2nd & 3rd channels are 3-ft wide",null,{"$f":"FIXED(F124*1000000/24/60,0) & \" gpm\"","v":"3,000 gpm"}]
[null,null,null,"4th channel is 10-ft wide"]
[null,null,null,"Length: 77-ft; Width: 23.5-ft"]
[null,null,null,"11,942 Gal/Ft (12.5 ft operating level)"]
[null,null,null,"Tracer Test: Modified Step-Dose"]
[]
[]
[null,null,null,null,"Station 3",10.199999999999999,"2019-02-26",14,9.8000000000000007,{"$f":"LOG(H132*I132)","v":2.1373541113707328},12.9,0.66,0.96,{"$f":"1.38/L132","v":2.0909090909090908},null,"Perpendicular to channel","Parralle to channel","Fluoride",48]
[null,null,null,null,"Station 4",10.199999999999999,"2019-02-26",21.6,9.8000000000000007,{"$f":"LOG(H133*I133)","v":2.3256798268434258},19.399999999999999,0.77,0.96,{"$f":"1.26/L133","v":1.6363636363636362},null,"60-in diameter pipe","60-in diameter pipe"]
[null,{"$f":"1+B125","v":12},null,null,"Station 5",10.199999999999999,"2019-02-26",28.8,9.8000000000000007,{"$f":"LOG(H134*I134)","v":2.4506185634517257},25.8,0.76,0.9,{"$f":"1.24/L134","v":1.631578947368421}]
[]
[null,null,null,null,"Station 4",19.899999999999999,"2019-02-26",21.6,19.045000000000002,{"$f":"LOG(H136*I136)","v":2.6142347281478959},9.9,0.57999999999999996,0.82,{"$f":"1.17/L136","v":2.0172413793103448}]
[null,null,null,null,"Station 5",19.899999999999999,"2019-02-26",28.8,19.045000000000002,{"$f":"LOG(H137*I137)","v":2.7391734647561958},13.2,0.72,0.97,{"$f":"1.16/L137","v":1.6111111111111112}]
[null,null,null,"Baffled ozone contactor."]
[null,null,null,"Channel width:  9.7-ft."]
[null,null,null,"Channel length:  63-ft."]
[null,null,null,"Baffled length:  53.4-ft."]
[null,null,null,"Water depth: 10-ft"]
[null,null,null,"Operating volume: 183,000 gal."]
[]
[]
[]
[]
[]
[]
[]
[null,null,null,null,"Station 5",24.75,"2019-08-19",31.4,26.9,{"$f":"LOG(H151*I151)","v":2.9266819280756229},12.1,0.76,0.93,1.59,null,null,null,"Fluoride",51]
[null,null,null,null,"Station 6",24.75,"2019-08-19",46.7,26.9,{"$f":"LOG(H152*I152)","v":3.0990691605685203},16.100000000000001,0.78,0.93,1.26]
[]
[null,null,null,null,"Station 5",12.42,"2020-01-08",31.4,13.5,{"$f":"LOG(H154*I154)","v":2.6272634165682209},24.1,0.63,0.8,1.69]
[null,null,null,null,"Station 6",12.42,"2020-01-08",46.7,13.5,{"$f":"LOG(H155*I155)","v":2.7996506490611184},23.6,0.74,0.88,1.48]
[null,{"$f":"1+B134","v":13},null,"Baffled ozone contactor."]
[null,null,null,"Sample Station 5 Vol:"]
[null,null,null,"207,878 gallons"]
[null,null,null,"Sample Station 6 Vol:"]
[null,null,null,"277,171 gallons"]
[null,null,null,"Basin is a two-story contactor."]
[null,null,null,"Average water depth: 9-ft"]
[]
[]
[]
[]
[]
[]
[]
[]
[]
[]
[null,{"$f":"1+B156","v":14},null,null,null,7.7500799999999996,"2020-06-04",30,{"$f":"5382/7.4805/(14*24)","v":2.14128161792088},{"$f":"LOG(H173*I173)","v":1.8077950434835097},304,0.63,"-","-",null,"Baffled",null,"Fluoride",53]
[null,null,null,null,null,{"$f":"FIXED(F173*1000000/24/60,0) & \" gpm\"","v":"5,382 gpm"},null,null,null,null,null,null,null,null,null,"134 (12\" x 8\") openings"]
[]
[null,null,null,null,"Sampled at two inlet"]
[null,null,null,null,"Locations to determine"]
[null,null,null,null,"applied tracer dose."]
[]
[null,null,null,null,"Steady-state inlet/outlet flows."]
[null,null,null,null,"Water Depth: 14-ft"]
[null,null,null,null,"Working Vol: 1,636,362 gallons"]
[]
[null,null,null,null,"t10: 191 minutes"]
[]
[]
[]
[]
[]
[]
[]
[]
[]
[null,null,null,"Baffled"]
[null,{"$f":"1+B173","v":15},null,"Serpentine Basin",null,"?",1997,56,null,null,"?",0.73,"?","?","?","Unbaffled Pipe Entrance","Unbaffled pipe outlet","NaCl",8]
[null,null,null,null,null,null,null,null,null,null,null,null,null,null,null,"3-inches off floor","6-inches off floor"]
[]
[]
[]
[]
[]
[null,null,null,"Baffled",null,26,"3/20/98",27,5.2,{"$f":"LOG(25*I202)","v":2.1139433523068369},220,0.53,1.05,4.4000000000000004,0.21612999999999999,null,null,"Lithium",12]
[null,null,null,"Serpentine Basin",null,{"$f":"FIXED(F202*1000000/24/60,0) & \" gpm\"","v":"18,056 gpm"},null,25,null,null,null,0.59]
[null,{"$f":"1+B195","v":16},null,"Water depth: 8.6 ft"]
[null,null,null,"4.0 MG operating volume"]
[null,null,null,"210' x 270'"]
[]
[]
[]
[]
[null,null,null,null,null,null,null,null,"Basin","HRT","Modal",null,"Modal"]
[null,null,null,null,null,null,null,null,"#","minutes","Contact time",null,"BF"]
[null,null,null,"Chlorine contact basin",null,null,null,null,1,166,130,null,0.78]
[null,null,null,"for wastewater.",null,null,null,null,2,167,135,null,0.81]
[null,null,null,"6.5-ft channel width & baffle opening.",null,2.2559999999999998,"8/23/2016",42,3,168,155,null,0.93,null,null,null,null,"Fluoride",38]
[null,{"$f":"1+B204","v":17},null,"130-ft channel length;",null,{"$f":"FIXED(F215*1000000/24/60,0) & \" gpm\"","v":"1,567 gpm"},null,null,"Combined 1-3:",166,145,null,0.87,null,null,null,null,"Sluge Dose"]
[null,null,null,"Basin L:W - 42:1"]
[null,null,null,"82,170 gallons/basin"]
[null,null,null,"6.5-ft water depth"]
[]
[]
[]
[]
[]
[]
[]
[]
[]
[]
[]
[]
[]
[]
[]
[]
[null,{"$f":"1+B216","v":18},null,null,null,null,"5/30/18",52,1.46,{"$f":"LOG(H236*I236)","v":1.8803561994192364},126,0.78,1,2,null,"-","-","Fluoride",43]
[null,null,null,null,null,null,null,"(for contact basin)",null,null,null,null,null,null,null,null,null,"Sluge Dose"]
[null,null,null,null,null,null,null,null,null,"Modal Contact Time:",112]
[]
[]
[]
[]
[]
[]
[]
[]
[]
[]
[]
[null,null,null,"Rectangular"]
[null,{"$f":"B236+1","v":19},null,"Secondary",null,30.2,"3/7/70",7.5,null,null,37,0.67,0.95,2.25,8.1000000000000003E-2,"Unbaffled ports ","V-Notch Weirs","Rhodamine B Dye",1]
[null,null,null,"Clarifier",null,{"$f":"FIXED(F251*1000000/24/60,0) & \" gpm\"","v":"20,972 gpm"},null,null,null,null,null,null,null,null,null,"Across face of inlet"]
[]
[]
[]
[]
[]
[null,null,null,"Rectangular",null,18.600000000000001,"7/8/99","-",null,null,105,0.64,0.95,"-","-","Unbaffled ports for","V-Notch Weirs","Lithium",13]
[null,{"$f":"B251+1","v":20},null,"Floculation/Sedimentation",null,{"$f":"FIXED(F258*1000000/24/60,0) & \" gpm\"","v":"12,917 gpm"},null,null,null,null,null,null,null,null,null,"each Flocculator"]
[null,null,null,"Basin"]
[]
[null,null,null,"Test Test: Slug-Dose"]
[]
[]
[]
[]
[]
[]
[null,{"$f":"B259+1","v":21},null,"Floculation Basins",null,18.600000000000001,"7/8/99","-",null,null,22.7,0.46,1.08,"-","-","Unbaffled ports for","Unbaffled ports","Lithium",13]
[null,null,null,null,null,{"$f":"FIXED(F269*1000000/24/60,0) & \" gpm\"","v":"12,917 gpm"},null,null,null,null,null,null,null,null,null,"each Flocculator"]
[null,null,null,"Test Test: Slug-Dose"]
[]
[]
[]
[null,null,null,null,null,1.9,"5/2/70",3,null,null,63,0.39,0.72,3.68,0.254,"Target baffled Ports","Cipolleti Weir","Rhodamine B Dye",1]
[null,null,null,null,null,{"$f":"FIXED(F275*1000000/24/60,0) & \" gpm\"","v":"1,319 gpm"},null,null,null,null,null,null,null,null,null,"Across Face of Inlet"]
[null,null,null,"Rectangular",null,1.9,"5/9/70",3,null,null,68,0.49,0.81,2.97,0.14699999999999999,"Target baffled Ports","Sharpcrested Weir","Rhodamine B Dye",1]
[null,{"$f":"B269+1","v":22},null,"Concrete",null,{"$f":"FIXED(F277*1000000/24/60,0) & \" gpm\"","v":"1,319 gpm"},null,null,null,null,null,null,null,null,null,"Across Face of Inlet"]
[null,null,null,"Basin",null,3.6,"4/24/71",3,null,null,35,0.39,0.63,3.21,0.14899999999999999,"Target baffled Ports","Sharpcrested Weir","Rhodamine B Dye",1]
[null,null,null,null,null,{"$f":"FIXED(F279*1000000/24/60,0) & \" gpm\"","v":"2,500 gpm"},null,null,null,null,null,null,null,null,null,"Across Face of Inlet"]
[null,null,null,null,null,0.3,"4/20/71",9,null,null,107,0.31,0.57999999999999996,3.83,0.252,"Target baffled Pipe","Sharpcrested Weir","Rhodamine B Dye",1]
[null,null,null,null,null,{"$f":"FIXED(F281*1000000/24/60,0) & \" gpm\"","v":"208 gpm"},null,null,null,null,null,null,null,null,null,"Entrance"]
[]
[null,null,null,"Long, Narrow and"]
[null,null,null,"Shallow Gunite ",null,3.5,"1970-02-21",21,null,null,49,0.59,0.85,2.14,7.6999999999999999E-2,"Unbaffled pipe entrance","Sharpcrested Weir","Rhodamine B Dye",1]
[null,{"$f":"B278+1","v":23},null,"Lined Channel",null,3.4,"1970-03-20",21,null,null,50,0.62,0.78,2.0699999999999998,8.4000000000000005E-2,"Unbaffled pipe entrance","Sharpcrested Weir","Rhodamine B Dye",1]
[null,null,null,"3-ft deep; 16-ft wide; 335-ft long"]
[]
[]
[]
[]
[null,null,null,"Serpentine - long rectangular "]
[null,null,null,"channel; 16.8 ft deep; 7.5 ft wide",null,18.600000000000001,"7/8/99",36,13.7,{"$f":"LOG(36*I293)","v":2.6930230679236939},22.3,0.8,1.18,2,7.0000000000000007E-2,"Baffled pipe entrance","Baffled Outlet","Fluoride",13]
[null,{"$f":"+B286+1","v":24},null,"channel; 272 ft long",null,{"$f":"FIXED(F293*1000000/24/60,0) & \" gpm\"","v":"12,917 gpm"}]
[]
[null,null,null,"Test Test: Slug-Dose"]
[]
[]
[]
[]
[]
[]
[]
[]
[]
[]
[]
[]
[null,{"$f":"B294+1","v":25},null,"Unbaffled Basin",null,1.44,"11/20/97","-",null,null,"?",0.19,"?","?","?","Unbaffled pipe entrance","Unbaffled pipe outlet","Fluoride",4]
[null,null,null,null,null,{"$f":"FIXED(F309*1000000/24/60,0) & \" gpm\"","v":"1,000 gpm"},null,null,null,null,null,null,null,null,null,"3-inches off floor","6-inches off floor"]
[]
[]
[]
[]
[]
[]
[]
[]
[]
[]
[]
[]
[]
[]
[]
[null,null,null,"Unbaffled Basin",null,0.26,"4/12/16","-","-","-",1540,0.08,"-","-","-","top","bottom","Fluoride",37]
[null,null,null,"Inlet/out 180o",null,{"$f":"FIXED(F326*1000000/24/60,0) & \" gpm\"","v":"181 gpm"}]
[null,{"$f":"+B309+1","v":26}]
[]
[]
[]
[]
[]
[]
[]
[]
[]
[]
[]
[]
[]
[]
[]
[]
[]
[]
[]
[]
[]
[]
[]
[]
[]
[]
[null,null,null,null,null,0.17299999999999999,"5/30/18","-","-","-",23.3,7.0000000000000007E-2,0.64,34,null,"Straight in","bottom","Fluoride",43]
[null,{"$f":"+B328+1","v":27},null,null,null,{"$f":"FIXED(F355*1000000/24/60,0) & \" gpm\"","v":"120 gpm"},null,null,null,null,null,null,null,null,null,null,null,"Sluge Dose"]
[]
[]
[]
[]
[]
[]
[]
[]
[]
[]
[]
[]
[null,null,null,"Unbaffled Basin"]
[null,null,null,"test with/without PAX on"]
[null,null,null,"Test inlet (bottom/top)"]
[]
[]
[]
[]
[]
[]
[null,{"$f":"B356+1","v":28}]
[]
[]
[null,null,null,"Test 1 (22 ft avg opt level); PAX on; inlet bottom;",null,null,"7/7/15","-",null,null,2727,3.3000000000000002E-2,null,null,null,"bottom (PAX on)","bottom","Fluoride",33]
[null,null,null,"139 gpm avg outlet; 255 gpm inlet; 379,000 gal avg volume"]
[null,null,null,"Test 2 (23.2 ft avg opt level); PAX off; inlet bottom; ",null,null,"7/14/15","-",null,null,3518,4.9000000000000002E-2,null,null,null,"bottom (PAX off)","bottom","Fluoride",33]
[null,null,null,"114 gpm avg outlet; 255 gpm inlet; 401,000 gal avg volume"]
[null,null,null,"Test 3 (18.7 ft avg opt level); PAX on, inlet top; ",null,null,"7/16/15","-",null,null,2360,6.3E-2,null,null,null,"top (PAX on)","bottom","Fluoride",33]
[null,null,null,"136 gpm avg outlet; 255 gpm inlet; 321,000 gal avg volume"]
[null,null,null,"Test 4 (21.6 ft avg opt level); PAX off, inlet top",null,null,"7/28/15","-",null,null,2609,9.0999999999999998E-2,null,null,null,"top (PAX off)","bottom","Fluoride",33]
[null,null,null,"142 gpm avg outlet; 255 gpm inlet; 370,500 gal avg volume"]
[]
[]
[]
[]
[]
[null,null,null,"Unbaffled Basin"]
[null,null,null,"test with PAX on"]
[null,null,null,"Test inlet (top/bottom)"]
[]
[]
[]
[null,{"$f":"B378+1","v":29}]
[]
[]
[]
[]
[]
[]
[]
[null,null,null,"Test 1 (21 ft avg opt level); PAX on; inlet top;",null,null,"2015-09-29","-",null,null,2610,8.4000000000000005E-2,null,null,null,"top (PAX on)","bottom","Fluoride",33]
[null,null,null,"138 gpm avg outlet; 259 gpm inlet flow"]
[null,null,null,"360,700 gal avg volume",null,null,null,null,null,null,null,null,null,null,null,"bottom (PAX on)","bottom","Fluoride",33]
[]
[null,null,null,"Test 2 (23.1 ft avg opt level); PAX on; inlet bottom; ",null,null,"2015-10-13",null,null,null,3440,5.8000000000000003E-2]
[null,null,null,"115 gpm avg outlet; 280 gpm inlet flow"]
[null,null,null,"395,600 gal avg volume"]
[null,null,null,"Note: PAX was moved to different location from what is"]
[null,null,null,"seen in Plate 18."]
[]
[]
[]
[]
[]
[]
[null,null,null,"Test 1 (26.2 ft avg opt level); Spray Aeration On; ",null,null,"8/13/15","-",null,null,1210,"0.30*",null,null,null,"Top (SolarBee Spray on)","bottom","Fluoride",34]
[null,null,null,"Spray Aeration (229 gpm); 123 gpm intlet flow;"]
[null,null,null,"269 gpm outlet; 325,700 gal avg volume"]
[null,null,null,"6 hour test"]
[null,null,null,"*test was cut short.  The 0.3 is minimum value."]
[null,null,null,"  Predicted baffling factor is 0.37."]
[null,{"$f":"B400+1","v":30}]
[null,null,null,"Test 2 (23.8 ft avg opt level); Spray Aeration Off; ",null,null,"8/25/15",null,null,null,1100,0.28000000000000003,null,null,null,"Top (SolarBee Spray off)","bottom","Fluoride",34]
[null,null,null,"Spray Aeration (229 gpm); 123 gpm intlet flow;"]
[null,null,null,"271 gpm outlet; 295,880 gal avg volume"]
[null,null,null,"5.5 hour test"]
[]
[]
[]
[]
[]
[]
[]
[null,null,null,"Tracer was injected in small clearwell channel next to"]
[null,null,null,"transfer pump suction line to large clearwell."]
[]
[]
[]
[]
[]
[]
[]
[]
[]
[]
[]
[]
[]
[]
[]
[null,{"$f":"B429+1","v":31},null,"Unbaffled Basin",null,2.52,"2/9/96","-","-","-",50,0.22,0.74,9.4,"-"," 90 degree bend top of Tank","Bottom of tank","Zinc",3]
[null,null,null,null,null,{"$f":"FIXED(F458*1000000/24/60,0) & \" gpm\"","v":"1,750 gpm"},null,null,null,null,null,null,null,null,null,null,"180o from inlet"]
[]
[]
[]
[]
[]
[]
[]
[]
[]
[]
[]
[]
[]
[]
[]
[]
[]
[]
[]
[null,{"$f":"B458+1","v":32},null,"Unbaffled Basin",null,3.67,"5/23/06","-",null,null,322,0.15,"-","-","-","Flow in both directions","Unbaffled pipe outlet","Fluoride",21]
[null,null,null,"Flow at top of tank",null,{"$f":"FIXED(F479*1000000/24/60,0) & \" gpm\"","v":"2,549 gpm"},null,null,null,null,null,null,null,null,null,"31-ft off floor.","7-inches off floor","Step-Dose"]
[null,null,null,"Outlet at bottom",null,null,null,null,null,null,null,null,null,null,null,"14\" diameter pipes","16\" diameter pipes"]
[]
[]
[]
[]
[]
[]
[]
[]
[]
[]
[]
[]
[]
[]
[null,null,null,"Unbaffled Tank",null,0.69,"11/1/06","-",null,null,250,0.1,"-","-","-","Perforated","Perforated","Fluoride",22]
[null,null,null,"12\" PVC Inlet/outlet ",null,{"$f":"FIXED(F496*1000000/24/60,0) & \" gpm\"","v":"479 gpm"},null,null,null,null,null,null,null,null,null,"Riser (14-ft)","Riser (14-ft)","Step-Dose (SV)"]
[null,{"$f":"B479+1","v":33},null,"Risers (14-ft)"]
[]
[null,null,null,"Tracer Test: Modified Step-Dose"]
[]
[]
[]
[]
[]
[]
[]
[]
[]
[]
[]
[]
[]
[]
[]
[]
[]
[null,null,null,null,"Tanks in series",2.52,"2/9/96","-",null,null,128,0.34,0.92,5.4,"-","Tank1:  90 degree bend top","Tank 1: Bottom of tank","Zinc",3]
[null,{"$f":"B498+1","v":34},null,null,null,{"$f":"FIXED(F518*1000000/24/60,0) & \" gpm\"","v":"1,750 gpm"},null,null,null,null,null,null,null,null,null,"of tank."]
[null,null,null,null,null,null,null,null,null,null,null,null,null,null,null,"Tank2:  90 degree bend top","Tank 2: Bottom of tank."]
[null,null,null,null,"Test Test: Step-Dose",null,null,null,null,null,null,null,null,null,null,"of tank."]
[]
[]
[]
[]
[]
[]
[]
[]
[]
[]
[]
[null,{"$f":"B519+1","v":35},"Transmission Line (3,189-ft) + 2.0 MG + 2.0 MG operated in series."]
[null,null,"Transmission flow (3,000 gpm).  Tank 2A exit flow at T10 (2,390 gpm).  Tank 2B exit flow at T10 (2,214 gpm). ",null,null,null,"7/30/20","-","-","Station 2",548,7.0000000000000007E-2,"-","-",null,"bottom","bottom","Fluoride",54]
[null,null,"Pipeline Vol: 52,044 gal.;  Tank 2A Vol: 1,258,326 gal.;  Tanks 2A + 2B Vol: 2,583,606 gal.",null,null,null,"7/30/20","-","-","Station 3",1183,0.23,"-","-",null,"bottom","bottom","Fluoride",54]
[]
[]
[]
[]
[]
[]
[]
[]
[]
[]
[]
[]
[]
[]
[]
[]
[]
[]
[]
[]
[]
[]
[]
[]
[]
[]
[]
[]
[null,null,null,null,null,"Exit Flow to 10%"]
[null,null,"Ten 7,500 gallon concrete tanks are filled from the top via surface water plant and wells. ",null,null,"112 gpm","11/15/18",null,null,null,497,0.11,"-","-",null,"Common inlet at top to","Bottom","Fluoride",46]
[null,null,"The rest of the tanks are connected at the bottom.  The baffling factor is based on the exit volume of water when ",null,null,null,null,null,null,null,null,null,null,null,null," 10 x 7,500 gallons"]
[null,null,"10% of tracer mass is seen on the outlet divided by working volume of the tanks that are filled from the top (10 x 7,500 gal)."]
[]
[]
[]
[]
[null,{"$f":"B533+1","v":36}]
[]
[]
[]
[]
[]
[]
[]
[]
[]
[]
[]
[]
[]
[]
[]
[]
[]
[null,null,null,null,null,0.88600000000000001]
[null,null,null,null,null,"615 gpm","2/10/22"]
[]
[]
[null,null,null,null,null,null,null,"-","-","-",72,0.54,0.98,3.6,null,"See schematic",null,"Fluoride",58]
[]
[]
[]
[null,{"$f":"B572+1","v":37}]
[]
[]
[]
[]
[]
[]
[]
[]
[]
[]
[]
[]
[null,null,null,null,null,0.92200000000000004,"2/10/22"]
[null,null,null,null,null,"640 gpm"]
[]
[null,null,null,null,null,null,null,"-","-","-",245,0.6,"-","-",null,"See schematic",null,"Fluoride",58]
[]
[]
[]
[]
[]
[null,{"$f":"B598+1","v":38}]
[]
[]
[]
[]
[]
[]
[]
[]
[]
[]
[]
[]
[]
[]
[]
[]
[]
[null,{"$f":"B620+1","v":39},null,"4.0 MG Concrete Underground",null,"12.0a","11/20/07",8,2.14,{"$f":"LOG(8*I638)","v":1.2335037603411345},187,"0.57a","-","-","-","Rectangle","Rectangle","Fluoride",26]
[null,null,null,"Clearwell;",null,"12.1b","2/26/08",8,0.91,{"$f":"LOG(8*I639)","v":0.86213137931303718},433,"0.42b","-","-","-","7.5 x 7.5-ft (8-ft above floor)","7.5 x 7.5-ft (flush to floor)",null,27]
[null,null,null,"Diameter:  194-ft",null,"24.9b","8/19/08",8,1.87,{"$f":"LOG(8*I640)","v":1.1749315935284426},206,"0.49b","-","-","-",null,null,null,27]
[null,null,null,"Max Water Level:  18-ft"]
[null,null,null,"Inlet: 7.5 x 7.5-ft (8-ft above floor)"]
[null,null,null,"Outlet: 7.5 x 7.5-ft (flush on bottom floor)"]
[null,null,null,"One Hypalon Baffle:  163.6-ft"]
[null,null,null,"Baffle Openning:  30.4-ft"]
[null,null,null,"aTracer Test Volume (38%): 1.5 MG"]
[null,null,null,"bTracer Test Volume (90%): 3.6 MG"]
[]
[null,null,null,"Tracer Test: Modified Step-Dose"]
[]
[]
[]
[]
[]
[]
[]
[]
[null,null,null,"Test 1: 31.8 ft operating level.",null,0.28799999999999998,"2/10/16",8,null,null,867,0.13,null,null,null,"Rise, 12 ft off bottom","bottom flush","Fluoride",35]
[null,{"$f":"1+B638","v":40},null,"Even flows (inlet/outlet)",null,{"$f":"FIXED(F658*1000000/24/60,0) & \" gpm\"","v":"200 gpm"}]
[]
[null,null,null,"Test 2: 33.4 ft operating level.",null,0.29199999999999998,"5/8/17",8,null,null,871,0.14000000000000001,null,null,null,"Rise, 12 ft off bottom","bottom flush","Fluoride",35]
[null,null,null,"Even flows (inlet/outlet)",null,{"$f":"FIXED(F661*1000000/24/60,0) & \" gpm\"","v":"203 gpm"}]
[]
[null,null,null,"Inlet/outlet separated by a single baffle."]
[]
[null,null,null,"1st Test:  It was determined that there were"]
[null,null,null,"major gaps between floor and wall baffle curtain."]
[]
[null,null,null,"2nd Test:  Gaps between floor and wall "]
[null,null,null,"were filled with a type of epoxy.  However, it "]
[null,null,null,"does not appeared to hold based on test results."]
[]
[]
[]
[]
[]
[]
[null,null,null,null,null,0.57599999999999996,"May 8, 2017",11,0.74,{"$f":"LOG(H678*I678)","v":0.91062440488920127},87,0.37,"-","-","-","8-in Inlet 2.8-ft off bottom ","8-in, Outlet 2-in off bottom","Fluoride",40]
[null,null,null,null,null,{"$f":"FIXED(F678*1000000/24/60,0) & \" gpm\"","v":"400 gpm"},null,null,null,null,null,null,null,null,null,"angled 30o up"]
[null,null,null,"Clearwell volume/ft:  2,844 gal/ft "]
[null,null,null,"Working volume during tracer study:  34,000 gallons"]
[null,{"$f":"1+B659","v":41},null,"12-ft operating level during tracer study"]
[null,null,null,"Inlet 2.8-ft off bottom angled 30o up"]
[null,null,null,"Outlet 2-in off bottom"]
[null,null,null,"L:W ratio: 11"]
[null,null,null,"Has spray aeration for TTHM reduction pumped "]
[null,null,null,"from outlet pipe back into tank top in last channel."]
[]
[]
[]
[]
[]
[]
[]
[]
[]
[]
[]
[null,{"$f":"1+B682","v":42},null,"Baffled",null,2.8799999999999999E-2,"9/11/2003",12,0.125,{"$f":"LOG(12*I699)","v":0.17609125905568124},240,0.39,0.94,5.43,0.23701,"4-ft length perforated PVC","PVC pipe located at top","Fluoride",16]
[null,null,null,"Serpentine Basin",null,{"$f":"FIXED(F699*1000000/24/60,0) & \" gpm\"","v":"20 gpm"},null,null,null,null,null,null,null,null,null,"located at bottom of tank","of tank"]
[null,null,null,"constant tank level"]
[null,null,null,"4,800 gallon storage"]
[]
[null,null,null,"Test Test: Slug-Dose"]
[null,null,null,"Modal Contact Time: 116 min"]
[null,null,null,"Modal Baffling Factor: 0.48"]
[]
[]
[]
[]
[]
[]
[]
[]
[]
[null,null,null,"Baffled",null,8,"9/11/2007",11.5,2.5539999999999998,{"$f":"LOG(11.5*I716)","v":1.4679187332810082},223,0.35,"-","-","-","24-inch diameter","20-inch diameter","Fluoride",23]
[null,null,null,"Serpentine Basin",null,{"$f":"FIXED(F716*1000000/24/60,0) & \" gpm\"","v":"5,556 gpm"},null,null,null,null,null,null,null,null,null,"At top/Vertical","At bottom/Vertical"]
[null,null,null,"tank level may vary"]
[null,null,null,"Diameter: 190-ft"]
[null,{"$f":"B699+1","v":43},null,"3 Million Gallon Tank"]
[null,null,null,"Test ran at 1.24 MG full"]
[]
[]
[]
[]
[]
[]
[]
[]
[]
[]
[]
[]
[]
[null,{"$f":"B720+1","v":44},null,"Baffled",null,1.44,"11/20/97",16,1.36,{"$f":"LOG(16*I735)","v":1.3376588910261422},132.6,0.5,1.1599999999999999,4.7699999999999996,0.15620000000000001,"Unbaffled pipe entrance","Unbaffled pipe outlet","Fluoride",9]
[null,null,null,"Serpentine Basin",null,{"$f":"FIXED(F735*1000000/24/60,0) & \" gpm\"","v":"1,000 gpm"},null,null,null,null,null,null,null,null,null,"3-inches off floor","6-inches off floor"]
[]
[null,null,null,"Tracer Test: Step-Dose"]
[]
[]
[]
[]
[]
[]
[]
[]
[]
[]
[null,null,null,"Baffled",null,14.3,"2005-04-07",16.600000000000001,1.9,{"$f":"LOG(H749*I749)","v":1.4988616889928841},null,0.45,0.92,2,"-","Unbaffled pipe entrance","Unbaffled pipe outlet","Fluoride",19]
[null,null,null,"Serpentine Basin",null,{"$f":"FIXED(F749*1000000/24/60,0) & \" gpm\"","v":"9,931 gpm"}]
[null,{"$f":"B735+1","v":45},null,"Inlet/Outlet located at bottom"]
[null,null,null,"Diam: 137-ft"]
[null,null,null,"Ht: 22.7 ft to overflow"]
[]
[]
[]
[]
[]
[]
[]
[]
[]
[]
[]
[]
[]
[null,null,null,"During Tracer Study:"]
[null,{"$f":"B751+1","v":46},null,"Avg working volume: 115,736 gallons",null,0.57399999999999995,"2019-11-21",27,0.5,{"$f":"LOG(H768*I768)","v":1.1303337684950061},290,{"$f":"116/290","v":0.4},"-","-",null,"Bottom","Bottom","Fluoride",51]
[null,null,null,"Average working tank level: 15.2-ft",null,"398.5 gpm"]
[null,null,null,"Water entered into the tank bottom"]
[null,null,null,"and exit the tank bottom. "]
[]
[]
[]
[]
[]
[]
[]
[]
[]
[]
[]
[]
[]
[]
[]
[null,null,null,"Baffled Tank",null,0.7,"11/1/06",34,1.19,{"$f":"LOG(34*I787)","v":1.6070258784347859},103,0.5,"-","-","-","Perforated","Non-perforated","Fluoride",22]
[null,{"$f":"B768+1","v":47},null,"12\" PVC Inlet/outlet ",null,{"$f":"FIXED(F787*1000000/24/60,0) & \" gpm\"","v":"486 gpm"},null,null,null,null,null,null,null,null,null,"Riser (14-ft)","Riser (14-ft)","Step-Dose (SV)"]
[null,null,null,"Risers (14-ft)"]
[null,null,null,"50,000 gal operating volume"]
[]
[null,null,null,"Tracer Test: Modified Step-Dose"]
[]
[]
[]
[]
[]
[]
[]
[]
[]
[]
[]
[]
[]
[null,null,null,"3.0 MG Concrete ",null,9.9499999999999993,"10/29/13",24,2.8,{"$f":"LOG(H806*I806)","v":1.8273692730538251},187,0.7,1,1.98,null,"Stand Pipe","Bottom flush","Fluoride (NaF)",31]
[null,null,null,"Clearwell;",null,{"$f":"FIXED(F806*1000000/24/60,0) & \" gpm\"","v":"6,910 gpm"},null,null,null,null,null,null,null,null,null,null,null,"Slug Dose"]
[null,{"$f":"B788+1","v":48},null,"Diameter:  130-ft"]
[null,null,null,"Test Water Level:  13-ft"]
[null,null,null,"Inlet: Stand Pipe (31.1-ft above floor)"]
[null,null,null,"Outlet: 7.5 x 7.5-ft (flush on bottom floor)"]
[null,null,null,"Tracer Test Volume (43%): 1.3 MG"]
[]
[]
[]
[]
[]
[]
[]
[]
[]
[]
[]
[]
[null,null,null,"Baffled"]
[null,{"$f":"B808+1","v":49},null,"Serpentine Basin",null,1.44,"8/9/96",81,4.1500000000000004,{"$f":"LOG(H826*I826)","v":2.5265331155907425},47.4,0.78,1.03,1.73,7.7189999999999995E-2,"Unbaffled pipe entrance","Outlet Weir Box","Fluoride",5]
[null,null,null,"25-ft Diameter",null,{"$f":"FIXED(F826*1000000/24/60,0) & \" gpm\"","v":"1,000 gpm"},null,null,null,null,null,null,null,null,null,"5 feet off floor","10 feet off floor"]
[null,null,null,"47,370 gal operating volume"]
[null,null,null,"12.9-ft water level"]
[]
[null,null,null,"Tracer Test: Step-Dose"]
[]
[]
[]
[]
[]
[]
[]
[]
[null,null,null,"Alvarado East Clearwell"]
[null,{"$f":"B826+1","v":50},null,"Circular Baffled Basin",null,111.9,"9/24/97",37,8.08,{"$f":"LOG(H841*I841)","v":2.4756130848415809},168,0.52,0.79,2.2000000000000002,7.1199999999999996E-3,"Unbaffled pipe entrance","Unbaffled pipe outlet","Lithium",10]
[null,null,null,null,null,{"$f":"FIXED(F841*1000000/24/60,0) & \" gpm\"","v":"77,708 gpm"}]
[null,null,null,"13.058 MG operating volume"]
[null,null,null,"25-ft water level"]
[null,null,null,"72-in Dia outlet/inlet"]
[]
[null,null,null,"Tracer Test: Slug-Dose"]
[]
[]
[]
[]
[]
[]
[]
[]
[]
[]
[null,null,null,"50-ft diameter",null,2.016,"2005-03-08","-",null,null,126,0.28999999999999998,0.78,9.1999999999999993,"-","Baffle pipe entrance","Baffle pipe outlet","Fluoride",18]
[null,null,null,"Inlet/Outlet Baffles",null,0.9677,"2005-06-08",null,null,null,262,0.14000000000000001,0.36,8.5]
[null,{"$f":"B841+1","v":51},null,"13.5-ft Height",null,0.71279999999999999,"2005-06-09",null,null,null,356,0.2,0.65,8.4]
[null,null,null,"14-inch inlet/outlet"]
[null,null,null,"Outlet pipe is 12-ft standpipe."]
[null,null,null,"Operated at 12-ft"]
[null,null,null,"during tracer test."]
[]
[]
[]
[]
[]
[]
[]
[]
[]
[null,null,null,"Outter shell diamter: 12-ft",null,8.5999999999999993E-2,"2007-10-19","-",null,null,230,0.23,"-","-","-","2-inch pipe","Overflow circular weir","Fluoride",25]
[null,null,null,"Inner shell diameter: 6-ft",null,{"$f":"FIXED(F874*1000000/24/60,0) & \" gpm\"","v":"60 gpm"}]
[null,{"$f":"B860+1","v":52},null,"Inlet pipe height/diam.: 10-ft/2-in"]
[null,null,null,"Inlet velocity: 6.1 ft/sec"]
[null,null,null,"Perforation diam.: 7/8-inch"]
[null,null,null,"Height of perforations: 6-ft"]
[null,null,null,"Volume to top of "]
[null,null,null,"overflow weir: 13,790 Gal"]
[]
[null,null,null,"Tracer Test: Modified Step-Dose"]
[]
[]
[]
[]
[]
[]
[]
[]
[]
[]
[]
[]
[]
[]
[null,null,null,"Serpentine long rectangular"]
[null,null,null,"channel followed by two"]
[null,{"$f":"B876+1","v":53},null,"unbaffled bay tanks",null,16.8,"7/8/1999","-",null,null,337,0.16,0.68,5.5,1.26,"Unbaffled pipe entrance","Unbaffled pipe outlet","Fluoride",13]
[null,null,null,"operated in parallel",null,{"$f":"FIXED(F900*1000000/24/60,0) & \" gpm\"","v":"11,667 gpm"},null,null,null,null,null,null,null,null,null,"top corner of basin","on bottom"]
[null,null,null,null,null,"(Slug-Dose)"]
[null,null,null,"Intake Structure: 31,598 gal"]
[null,null,null,"Contact Chamber: 256,372 gal"]
[null,null,null,"Bay Contact Tanks:"]
[null,null,null,"Operating Vol: 3,651,268 gal (test)"]
[null,null,null,"Operating water depth, 19.2 ft (test)"]
[null,null,null,"24-ft depth, 136 ft long, 116 wide (each)"]
[null,null,null,"(Sloping bottom, corner feed)"]
[]
[]
[]
[]
[]
[]
[]
[null,null,null,"Serpentine long rectangular"]
[null,null,null,"channel followed by two"]
[null,null,null,"unbaffled bay tanks"]
[null,null,null,"operated in parallel",null,14,"2018-07-17","-",null,null,429,0.17,"-","-",null,"Unbaffled pipe entrance","Unbaffled pipe outlet","Fluoride",44]
[null,null,null,"Fountain Aeraton added in 2016",null,{"$f":"FIXED(F920*1000000/24/60,0) & \" gpm\"","v":"9,722 gpm"},null,null,null,null,null,null,null,null,null,"top corner of basin","on bottom"]
[null,null,null,null,null,"(Modified Step-Dose)"]
[null,{"$f":"B900+1","v":54},null,"Intake Structure: 31,598 gal"]
[null,null,null,"Contact Chamber: 256,372 gal"]
[null,null,null,"Bay Contact Tanks:"]
[null,null,null,"Operating Vol: 3,886,739 gal (test)"]
[null,null,null,"Operating water depth, 20.2 ft (test)"]
[null,null,null,"24-ft depth, 136 ft long, 116 wide (each)"]
[null,null,null,"(Sloping bottom, corner feed)"]
[]
[]
[]
[]
[]
[]
[]
[]
[]
[]
[]
[null,null,null,"10.5 MG"]
[null,null,null,"Unbaffled concrete ",null,35,"10/9/97","-",null,null,235,0.39,0.88,4.5,0.16569999999999999,"Unbaffled pipe entrance","Unbaffled pipe outlet","Lithium",6]
[null,{"$f":"B923+1","v":55},null,"undeground tank;",null,40,"9/18/97","-",null,null,209,0.31,0.74,5,0.17985999999999999,"Unbaffled pipe entrance","Unbaffled pipe outlet","Lithium",6]
[null,null,null,"inlet top corner;",null,45,"9/4/97","-",null,null,184,0.34,0.81,5.2,0.18226999999999999,"Unbaffled pipe entrance","Unbaffled pipe outlet","Lithium",6]
[null,null,null,"outlet bottom center",null,45,"4/22/08","-",null,null,160,0.31,0.74,5.6,"-","Unbaffled pipe entrance","Unbaffled pipe outlet","Fluoride",28]
[null,null,null,"Max water level: 25-ft",null,52,"5/6/08","-",null,null,158,0.3,0.74,5.9,"-","Unbaffled pipe entrance","Unbaffled pipe outlet","Fluoride",28]
[null,null,null,"15-17-ft normal operating level",null,60,"6/17/08","-",null,null,160,0.3,0.75,6.2,"-","Unbaffled pipe entrance","Unbaffled pipe outlet","Fluoride",28]
[null,null,null,"13-ft (4/22/08)"]
[null,null,null,"14.5-ft (5/6/08)"]
[null,null,null,"16.5-ft (6/17/08)"]
[]
[]
[]
[]
[]
[]
[]
[]
[]
[null,null,null,"Baffled Tank"]
[null,null,null,"30-ft between baffles",null,20,"2004-03-17",37.6,null,null,108,0.59,0.86,2.2000000000000002,"-","Unbaffled pipe entrance","Unbaffled pipe outlet","Fluoride",17]
[null,{"$f":"+B943+1","v":56},null,"Note:  Width in the L:W ratio",null,41.5,"2004-07-21",37.6,null,null,52,0.67,1,2.8,"-"]
[null,null,null,"was decreased to account "]
[null,null,null,"for tank slope.  "]
[null,null,null,"Operated at 60% full during test."]
[null,null,null,"Water L:W was 262:111 ft"]
[null,null,null,"Baffle Length: 210"]
[null,null,null,"Approximately 100,000 gallon of "]
[null,null,null,"inlet/out pipeline included in study."]
[null,null,null,"Total Tank + Pipe Vol. = 1.5 MG"]
[]
[]
[]
[]
[]
[]
[]
[null,null,null,"    Normal operating level ranges"]
[null,null,null,"    from 18 to 22 feet.  Test level ",null,22.24,"2012-08-30",70,1.79,{"$f":"LOG(70*I979)","v":2.0979510709941498},741,0.73,"-","-","-","Two separate pipe inlets","Rectangle drain box","Fluoride",30]
[null,null,null,"    average 21.13 feet.",null,{"$f":"FIXED(F979*1000000/24/60,0) & \" gpm\"","v":"15,444 gpm"},null,null,null,null,null,null,null,null,null,null,"13 feet above floor"]
[null,null,null,"    Average test vol: 11.45 MG",null,null,null,null,null,null,null,null,null,null,null,null,"Connects to 54-in outlet"]
[null,{"$f":"B962+1","v":57},null,"      Floor has 20% incline at wall",null,null,null,null,null,null,null,null,null,null,null,null,"pipe."]
[]
[]
[]
[]
[]
[]
[]
[]
[]
[]
[]
[]
[]
[]
[]
[]
[]
[]
[]
[]
[]
[]
[null,null,null,"Old clarifier converted",null,0.216,"10/10/98","-",null,null,179,0.09,0.55000000000000004,20.3,1.72,"Circular weir entrance","Perforated piping on ","Fluoride",11]
[null,{"$f":"B982+1","v":58},null,"to clearwell; circular",null,{"$f":"FIXED(F1005*1000000/24/60,0) & \" gpm\"","v":"150 gpm"},null,null,null,null,null,null,null,null,null,"submerge","bottom of tank"]
[null,null,null,"v-notch weir left in."]
[]
[null,null,null,"Tracer Test: Step-Dose"]
[]
[]
[]
[]
[]
[]
[]
[]
[]
[]
[]
[]
[]
[]
[]
[]
[]
[null,{"$f":"B1006+1","v":59},null,null,null,0.16272,"4/23/21","-",null,null,190,0.15,"-","-",null,"Perforated inlet line across ","Perforated piping on ","Fluoride",55]
[null,null,null,null,null,{"$f":"FIXED(F1027*1000000/24/60,0) & \" gpm\"","v":"113 gpm"},null,null,null,null,null,null,null,null,null,"center (50 x 1/2-in holes)","bottom of tank"]
[]
[]
[]
[]
[]
[]
[]
[]
[null,null,null,"Tracer Test: Modified Step-Dose"]
[null,null,null,"A perforated header was added arcross top to distribute inlet "]
[null,null,null,"water across Clearwell (modification from previous plate)"]
[]
[]
[]
[]
[]
[null,null,"Pressure Clearwell"]
[]
[null,null,null,null,null,{"$f":"210*1440/1000000","v":0.3024},"2018-09-30","-","-","-",95,0.45,0.84,3.37,null,"Peforated","Perforated","Fluoride",45]
[null,null,null,null,null,"(210 gpm)",null,null,null,null,null,null,null,null,null,null,null,"Slug-Dose"]
[null,{"$f":"B1027+1","v":60}]
[null,null,null,null,null,{"$f":"213*1440/1000000","v":0.30671999999999999},"9/31/2018","-","-","-",94,0.49,"-","-",null,"Peforated","Perforated","Fluoride",45]
[null,null,null,null,null,"(213 gpm)",null,null,null,null,null,null,null,null,null,null,null,"Modified Step-Dose"]
[]
[]
[]
[]
[]
[]
[]
[]
[]
[]
[null,null,null,null,null,{"$f":"204*1440/1000000","v":0.29376000000000002},"2019-02-04","-","-","-",98,0.54,"-","-",null,"Peforated","Perforated","Fluoride",47]
[null,null,null,null,null,"(204 gpm)",null,null,null,null,null,null,null,null,null,null,null,"Modified Step-Dose"]
[]
[]
[]
[null,{"$f":"B1049+1","v":61}]
[]
[]
[]
[]
[null,null,"The inlet baffled holes were plugged off except the 12 holes within the highlighted boundary."]
[]
[]
[null,null,"Over and under configuration"]
[null,{"$f":"B1067+1","v":62}]
[null,null,null,null,null,6,"2021-07-23",13,9.1999999999999993,{"$f":"LOG(I1077*H1077)","v":2.0777311796523921},6.6,0.74,1.23,2.61,null,"Baffle pipe entrance","Unbaffled pipe outlet","Fluoride",56]
[null,null,null,null,"Tracer Test: Slug-Dose"]
[]
[]
[]
[]
[]
[]
[]
[]
[]
[]
[]
[]
[]
[]
[]
[]
[]
[]
[]
[]
[]
[]
[]
[]
[null,null,"Over and under configuration"]
[]
[]
[null,{"$f":"B1076+1","v":63},null,null,"Station 1",13.5,"2005-10-20",6,12.8,1.9,3.46,0.62,1.1000000000000001,2.1,0.29525000000000001,"Baffle pipe entrance","Unbaffled pipe outlet","Fluoride",20]
[null,null,null,null,"Station 3",13.5,"2005-10-20",27,12.8,2.5,14.06,0.82,1.2,3.4,0.15422]
[null,null,null,null,"Station 2",13.5,"2005-10-21",12,12.8,2.2000000000000002,6.58,0.63,1,2.65,0.1119]
[null,null,null,null,"Station 1",10.6,"2005-10-21",6,10,1.8,4.3899999999999997,0.56000000000000005,1,3.3,2.3800000000000002E-2]
[null,null,null,null,"Station 3",10.6,"2005-10-21",27,10,2.4,17.8,0.75,1.1000000000000001,2.2000000000000002,0.15690000000000001]
[]
[]
[null,null,null,null,"Tracer Test: Slug-Dose"]
[]
[]
[]
[]
[]
[]
[]
[]
[]
[null,null,null,null,null,null,null,"L/D",null,null,"HRT, sec"]
[null,null,null,null,"Station 2",8,"2016-02-22",45,47,{"$f":"LOG(H1124*I1124)","v":3.325310371711061},262,0.95,null,null,"-",null,null,"Fluoride",36]
[null,null,null,null,"Station 2",15,"2016-02-22",45,87,{"$f":"LOG(H1125*I1125)","v":3.5927317663939622},140,0.95,null,null,"-"]
[null,null,"Tracer Test:  Step-Dose",null,"Station 2",15,"2016-02-23",45,87,3.5927317663939622,140,1,null,null,"-"]
[null,null,null,null,"Station 2",20,"2016-02-23",45,117,3.7213983755215052,105,1,null,null,"-"]
[null,{"$f":"B1106+1","v":64},null,null,"Station 2",25,"2016-02-23",45,146,3.8175653695597807,84,1,null,null,"-"]
[]
[null,null,null,null,"Station 4",8,"2016-02-22",90,47,3.6263403673750423,524,0.95,null,null,"-"]
[null,null,null,null,"Station 4",15,"2016-02-22",90,87,3.8937617620579434,280,0.95,null,null,"-"]
[null,null,null,null,"Station 4",15,"2016-02-23",90,87,3.8937617620579434,280,1,null,null,"-"]
[null,null,"54-in diameter ozone pipeline (straight)",null,"Station 4",20,"2016-02-23",90,117,4.0224283711854865,210,1,null,null,"-"]
[null,null,"204-ft  between Stations 0 & 2 (24,270 gal)",null,"Station 4",25,"2016-02-23",90,146,4.1185953652237624,168,0.95,null,null,"-"]
[null,null,"204-ft  between Stations 2 & 4 (24,270 gal)"]
[null,null,"Reynolds Number: 383,000 - 965,000 (Turbulent)"]
[]
[]
[null,null,null,null,null,null,null,"L/D"]
[null,null,null,null,null,"58 gpm","2017-05-15",57,0.61699999999999999,"-",370,0.18,"-","-",null,"Vertical Manhole","Vertical Manhole","Fluoride",41]
[null,null,null,null,null,"43 gpm","2017-07-20",57,0.45700000000000002,"-",370,0.2,"-","-"]
[null,{"$f":"B1128+1","v":65},"Modal contact time: 90 min"]
[]
[]
[]
[]
[null,null,"Pipeline volume:  21,500 gallons; Pipeline diameter: 48-inches (4 feet)"]
[null,null,"Pipeline length: 229 feet; Material: concrete (buried)"]
[null,null,"Temperature entering/exit (18 & 17.7o C);  Temperature profile was conducted - results: Temperature  gradient inside pipeline (warmer at upper portions of pipeline)."]
[null,null,"Modal baffling factor: 0.24 for treated wastewater treatment plant.  It is expected that warmer water is short-circuiting at upper portion of pipeline."]
[null,null,"Reynolds Number: 2,669 - 3,600 (Critical zone, between Laminar and Transition zones)"]
[]
[]
[]
[]
[null,null,null,null,null,null,null,"L/D"]
[null,{"$f":"B1142+1","v":66},null,null,null,"63 gpm","2017-08-09",57,0.67,"-",340,0.47,"-","-",null,"Vertical Manhole","Vertical Manhole","Fluoride",42]
[]
[]
[]
[]
[null,null,"Pipeline volume:  21,500 gallons; Pipeline diameter: 48-inches (4 feet)"]
[null,null,"Pipeline length: 229 feet; Material: concrete (buried)"]
[null,null,"Orifice pipeline:  1.5\" PVC, 80-ft, 1/8\" holes spaced 18 inches (added for third tracer study to increase mixing energy)"]
[null,null,"Modal baffling factor: 0.62 for treated wastewater treatment plant."]
[]
[]
[]
[null,{"$f":"1+B1157","v":67}]
[null,null,null,null,null,"95 gpm","2021-10-28",57,1.01,"-",240,0.82,1.04,1.73,null,"Vertical Manhole","Vertical Manhole","Fluoride"]
[]
[]
[]
[]
[]
[]
[]
[]
[]
[]
[]
[null,null,"Modal baffling factor:1.0 for treated wastewater treatment plant."]
[]
[]
[null,null,"Serpentine Pipeline"]
[]
[]
[]
[]
[]
[]
[]
[null,null,null,null,null,null,null,"L/D"]
[null,{"$f":"B1169+1","v":68},null,null,"Station 1",0.51300000000000001,"2003-01-30",76,3.79,{"$f":"LOG(H1194*I1194)","v":2.4594528022488635},79.8,0.82,0.96,1.5,"-","Unbaffled pipe entrance","Unbaffled pipe outlet","Fluoride",15]
[null,null,null,null,"Station 2",0.51300000000000001,"2003-01-30",114,3.79,{"$f":"LOG(H1195*I1195)","v":2.6355440613045449},121,0.84,0.93,1.3,"-"]
[null,null,null,null,"Station 3",0.51300000000000001,"2003-01-30",153,3.79,{"$f":"LOG(H1196*I1196)","v":2.763330640785671},162,0.85,0.93,1.2,"-"]
[null,null,null,null,"Station 4",0.51300000000000001,"2003-01-30",192,3.79,{"$f":"LOG(H1197*I1197)","v":2.8619404386716218},202,0.82,0.89,1.2,"-"]
[null,null,null,null,"Station 5",0.51300000000000001,"2003-01-30",422,3.79,{"$f":"LOG(H1198*I1198)","v":3.203951660929746},446,0.96,1,1.2,"-"]
[]
[]
[]
[null,null,null,null,"Tracer Test: Slug-Dose"]
[null,null,null,null,"356 gpm test flow"]
[null,null,null,null,"Reynolds Number: 22,000 (critical zone)"]
[]
[]
[]
[]
[]
[]
[]
[null,null,null,null,null,"Flow - varied","2008-11-19","-",null,null,null,0.17,"-","-","-","Top of Tank","Bottom of Tank","Fluoride",29]
[null,null,null,null,null,"Booster Pump","Winter",null,null,null,null,null,null,null,null,null,"same side of inlet"]
[null,null,null,null,null,null,"Distribution Flow"]
[null,{"$f":"B1194+1","v":69}]
[null,null,null,null,null,null,"2008-11-20",null,null,null,null,0.14000000000000001,"-","-","-"]
[null,null,null,null,null,null,"Summer"]
[null,null,null,null,null,null,"Distribution Flow"]
[]
[]
[null,null,"Tracer Method:  Cummulative Volume (VC10); for non-steady-state flows;"]
[null,null,"t10 is based on volume of water discharged to distribution system and not on time."]
[]
[]
[null,null,null,null,null,"Flow - varied","2008-11-20",null,null,null,null,0.14000000000000001,"-","-","-","Top of Tank","Bottom of Tank","Fluoride",29]
[null,null,null,null,null,"Booster Pump","Winter",null,null,null,null,null,null,null,null,null,"same side of inlet"]
[null,null,null,null,null,null,"Distribution Flow"]
[null,{"$f":"B1215+1","v":70}]
[null,null,null,null,null,null,"2008-11-21",null,null,null,null,0.09]
[null,null,null,null,null,null,"Summer"]
[null,null,null,null,null,null,"Distribution Flow"]
[null,null,"Tracer Method:  Cummulative Volume (VC10); for non-steady-state flows;"]
[null,null,"t10 is based on volume of water discharged to distribution system and not on time."]
[]
[]
[]
[null,null,null,null,null,"Flow - varied","2008-11-19",null,null,null,null,0.16,null,"-","-","Top of Tanks","Bottom of Tank","Fluoride",29]
[null,null,null,null,null,"Booster Pump","Winter"]
[null,{"$f":"B1228+1","v":71},null,null,null,null,"Distribution Flow"]
[]
[null,null,null,null,null,null,"2008-11-21",null,null,null,null,0.14000000000000001]
[null,null,null,null,null,null,"Summer"]
[null,null,null,null,null,null,"Distribution Flow"]
[]
[null,null,"Tracer Method:  Cummulative Volume (VC10); for non-steady-state flows;"]
[null,null,"t10 is based on volume of water discharged to distribution system and not on time."]

{"sheet":"Data","index":5,"n_rows":99,"n_cols":38,"rows_kept":99,"cut":false,"hidden":true,"merged":[]}
[null,null,null,null,null,null,null,null,null,null,null,null,null,null,null,null,"Excludes",null,null,null,null,null,null,"Use vertical width for L:W",null,null,null,"Excludes"]
[null,null,"T10/T",null,null,null,null,null,null,null,null,null,null,null,null,"All","M&B",null,null,null,"Rectangle Tanks",null,null,"Over and under Tanks",null,null,"L:W","M&B, Circular Tanks"]
[null,"L/W","Bishop's \nStudy","Santa Rosa","City of Fairfield","Marske & \nBoyle's Study","SPH","Carollo",null,"City of San Diego","Kern \nCWA","HEI","REB","DJWWTP","L:W","t10/T","t10/T",null,null,null,"L:W","t10/T",null,"L:W","t10/T",null,null,"t10/T",null,null,null,null,null,null,null,null,"L/W","Bishop's Study"]
[null,3,null,null,null,0.24,null,null,null,null,null,null,null,null,3,0.24,null,null,null,null,3,null,null,3,null,null,3,null,null,null,null,null,null,null,null,null,3]
[null,4.4000000000000004,null,null,null,null,null,null,null,null,null,null,null,null,4.4000000000000004,null,null,null,null,null,4.4000000000000004,null,null,4.4000000000000004,null,null,4.4000000000000004]
[null,4.4000000000000004,null,null,null,null,null,null,null,null,null,null,null,null,4.4000000000000004,null,null,null,null,null,4.4000000000000004,null,null,4.4000000000000004,null,null,4.4000000000000004]
[null,6,null,null,null,null,null,null,null,null,null,null,null,null,6,null,null,null,null,null,6,null,null,6,0.56000000000000005]
[null,6,null,null,null,null,null,null,null,null,null,null,null,null,6,null,null,null,null,null,6,null,null,6,0.62]
[null,6.9,0.27,null,null,null,null,null,null,null,null,null,null,null,6.9,0.27,0.27,null,null,null,7.4,0.3,null,7.4,null,null,6.9,0.27,null,null,null,null,null,null,null,null,7.4,0.3]
[null,7.5,null,null,null,0.4,null,null,null,null,null,null,null,null,7.5,0.4,null,null,null,null,7.5,null,null,7.5,null,null,7.5,null,null,null,null,null,null,null,null,null,7.5]
[null,8,null,null,null,null,null,null,null,null,null,null,null,null,8,null,null,null,null,null,8,null,null,8,null,null,8]
[null,9.3000000000000007,null,0.31,null,null,null,null,null,null,null,null,null,null,9.3000000000000007,0.31,0.31,null,null,null,9.3000000000000007,0.31,null,9.3000000000000007,null,null,9.3000000000000007,null,null,null,null,null,null,null,null,null,9.3000000000000007]
[null,10.35,null,null,null,null,null,null,null,null,null,null,null,null,10.35,null,null,null,null,null,10.4,null,null,10.4,null,null,10.35]
[null,11,null,0.37,null,null,null,null,null,null,null,null,null,null,11,0.37,0.37,null,null,null,11,null,null,11,null,null,11,0.37]
[null,11.5,null,null,null,null,null,null,null,null,0.35,null,null,null,11.5,0.35,0.35,null,null,null,11.5,null,null,11.5,null,null,11.5,0.35]
[null,11.7,null,0.39,null,null,null,null,null,null,null,null,null,null,11.7,0.39,0.39,null,null,null,11.7,null,null,11.7,null,null,11.7,0.39]
[null,12,null,null,null,null,null,null,null,null,null,null,null,null,12,null,null,null,null,null,12,null,null,12,0.63,null,12]
[null,12.5,null,null,null,0.51,null,null,null,null,null,null,null,null,12.5,0.51,null,null,null,null,12.5,0.51,null,12.5,null,null,12.5,null,null,null,null,null,null,null,null,null,12.5]
[null,13,null,null,null,null,null,null,null,null,null,null,null,null,13,null,null,null,null,null,13,null,null,13,0.74,null,13,null,null,null,null,null,null,null,null,null,13]
[null,16.5,null,0.39,null,null,null,null,null,null,null,null,null,null,16.5,0.39,0.39,null,null,null,16.5,0.39,null,16.5,null,null,16.5,null,null,null,null,null,null,null,null,null,16.5]
[null,16.600000000000001,null,null,null,null,null,null,null,null,null,0.45,null,null,16.600000000000001,0.45,0.45,null,null,null,16.600000000000001,null,null,16.600000000000001,null,null,16.600000000000001,0.45]
[null,16.600000000000001,null,0.5,null,null,null,null,null,null,null,null,null,null,16.600000000000001,0.5,0.5,null,null,null,16.600000000000001,null,null,16.600000000000001,null,null,16.600000000000001,0.5]
[null,16.7,null,null,null,null,null,null,null,null,null,null,null,null,16.7,null,null,null,null,null,16.7,null,null,16.7,null,null,16.7,null,null,null,null,null,null,null,null,null,16.7,0.61]
[null,16.8,null,null,null,null,null,null,null,null,null,null,null,null,16.8,null,null,null,null,null,16.8,null,null,16.8,null,null,16.8]
[null,16.8,null,null,null,null,null,null,null,null,null,null,null,null,16.8,null,null,null,null,null,16.8,null,null,16.8,null,null,16.8]
[null,20,null,0.6,null,null,0.44,null,null,null,null,null,null,null,20,0.44,0.44,null,null,null,20,null,null,20,null,null,20,0.44,null,null,null,null,null,null,null,null,20]
[null,20,null,null,null,null,null,null,null,null,null,null,null,null,20,0.6,0.6,null,null,null,20,0.6,null,27,0.75,null,20]
[null,21,null,null,null,null,null,null,null,null,null,null,null,null,21,null,null,null,null,null,21,null,null,27,0.82,null,21]
[null,21,null,null,null,null,null,null,null,null,null,null,null,0.59,21,0.59,0.59,null,null,null,21,0.59,null,null,null,null,21,null,null,null,null,null,null,null,null,null,21.7]
[null,21,null,null,null,null,null,null,null,null,null,null,null,0.53,21,0.53,0.53,null,null,null,21,0.53,null,null,null,null,21,null,null,null,null,null,null,null,null,null,23.5]
[null,21,null,null,null,null,null,null,null,null,null,null,null,0.66,21,0.66,0.66,null,null,null,21,0.66,null,null,null,null,21,null,null,null,null,null,null,null,null,null,24.4]
[null,21.7,null,null,null,0.55000000000000004,null,null,null,null,null,null,null,null,21.7,0.55000000000000004,0.55000000000000004,null,null,null,21.7,0.55000000000000004,null,null,null,null,21.7,null,null,null,null,null,null,null,null,null,24.5]
[null,23.5,null,null,null,null,null,null,null,null,null,null,null,null,23.5,null,null,null,null,null,23.5,null,null,null,null,null,23.5]
[null,24.4,null,null,null,0.61,null,null,null,null,null,null,null,null,24.4,0.61,null,null,null,null,24.4,0.61,null,null,null,null,24.4]
[null,24.5,null,null,null,null,null,0.59,null,null,null,null,null,null,24.5,0.59,0.59,null,null,null,24.5,0.59,null,null,null,null,24.5]
[null,27,null,0.4,null,null,null,null,null,null,null,null,null,null,27,0.4,0.4,null,null,null,27,null,null,null,null,null,27]
[null,30,null,0.63,null,null,null,null,null,null,null,null,null,null,30,0.63,0.63,null,null,null,30,0.63,null,null,null,null,30,0.63]
[null,34,null,0.5,null,null,null,null,null,null,null,null,null,null,34,0.5,0.5,null,null,null,34,null,null,null,null,null,34,0.5,null,null,null,null,null,null,null,null,37.700000000000003]
[null,37.6,null,null,null,null,null,null,null,null,0.55000000000000004,null,null,null,37.6,0.55000000000000004,0.55000000000000004,null,null,null,37.6,0.55000000000000004,null,null,null,null,37.6,null,null,null,null,null,null,null,null,null,46,0.64]
[null,37.6,null,null,null,null,null,null,null,null,0.64,null,null,null,37.6,0.64,0.64,null,null,null,37.6,0.64,null,null,null,null,37.6,null,null,null,null,null,null,null,null,null,56]
[null,37.700000000000003,null,null,null,null,null,null,null,0.52,null,null,null,null,37.700000000000003,0.52,0.52,null,null,null,null,null,null,null,null,null,37.700000000000003,0.52,null,null,null,null,null,null,null,null,70]
[null,46,null,null,null,null,null,null,null,null,null,null,null,null,46,null,null,null,null,null,46,null,null,null,null,null,46,null,null,null,null,null,null,null,null,null,70]
[null,56,null,null,0.73,null,null,null,null,null,null,null,null,null,56,0.73,0.73,null,null,null,56,0.73,null,null,null,null,56,null,null,null,null,null,null,null,null,null,70]
[null,70,null,null,null,0.56999999999999995,null,null,null,null,null,null,null,null,70,0.56999999999999995,null,null,null,null,70,0.56999999999999995,null,null,null,null,70]
[null,70,null,null,null,0.63,null,null,null,null,null,null,null,null,70,0.63,null,null,null,null,70,0.63,null,null,null,null,70,null,null,null,null,null,null,null,null,null,81]
[null,70,null,null,null,null,null,null,null,null,null,null,0.73,null,70,0.73,0.73,null,null,null,70,0.73,null,null,null,null,70]
[null,76,null,0.7,null,null,null,null,null,null,null,null,null,null,76,0.7,0.7,null,null,null,76,0.7,null,null,null,null,76]
[null,81,null,0.78,null,null,null,null,null,null,null,null,null,null,81,0.78,0.78,null,null,null,81,null,null,null,null,null,81,0.78]
[]
[]
[]
[]
[null,"L/W","Vel, ft/min","(vel*L:W)0.5","BF","log(vel*L:W)"]
[null,6.9,0.84,{"$f":"(B54*C54)^0.5","v":2.4074883177286655},0.27,{"$f":"LOG(B54*C54)","v":0.76312837679913703}]
[null,9,1.6,3.7947331922020551,0.31,1.1583624920952498]
[null,11,0.74,2.8530685235374214,0.37,0.91062440488920127]
[null,11.5,2.6,5.4680892457969268,0.35,1.4756711883244298]
[null,16.5,0.84,3.722902093797257,0.39,1.1417632302757879]
[null,8,0.91,2.6981475126464085,0.42,0.86213137931303718]
[null,16.600000000000001,1.9,5.6160484328395892,0.45,1.4988616889928841]
[null,8,1.87,3.8678159211627432,0.49,1.1749315935284426]
[null,16,1.36,4.6647615158762408,0.5,1.3376588910261422]
[null,34.1,1.19,6.3701648330321881,0.5,1.6083013403850286]
[null,37]
[null,4.4000000000000004,10,6.6332495807107996,0.56000000000000005,1.6434526764861874]
[null,8,2.1,4.0987803063838397,0.56999999999999995,1.2253092817258628]
[null,21,3.58,{"$f":"(B67*C67)^0.5","v":8.6706401147781467},0.59,{"$f":"LOG(B67*C67)","v":1.8761023213777936}]
[null,20,1.79,5.9833101206606365,0.6,1.5538830266438743]
[null,21,5.13,10.379306335203717,0.53,2.0323366598457357]
[null,21,4.6500000000000004,9.8818014552003621,0.66,1.9896722476238733]
[null,25,5.2,11.401754250991379,0.59,2.1139433523068369]
[null,4.4000000000000004,12.8,7.5046652157174876,0.62,1.7506626461340558]
[null,8,12.8,10.119288512538814,0.63,2.0102999566398121]
[null,76,6.3,21.881499034572563,0.7,2.6801541417343731]
[null,24,2.8,8.1975606127676777,0.7,1.8273692730538251]
[null,70,1.79,11.193748255164577,0.73,2.0979510709941498]
[null,16.8,10,12.961481396815721,0.75,2.2253092817258628]
[null,28.8,9.8000000000000007,16.8,0.76,2.4506185634517257]
[null,81,4.1500000000000004,18.334393908717026,0.78,2.5265331155907425]
[null,36,13.7,22.208106627986098,0.8,2.6930230679236939]
[null,16.8,12.8,14.66424222385869,0.82,2.3325192513737312]
[null,27,0.5,3.6742346141747673,0.4,1.1303337684950061]
[null,30,2.14,8.0124902496040527,0.63,1.8075350280688534]
[null,31.4,13.5,20.588831924128186,0.63,2.6272634165682209]
[null,31.4,26.9,29.063034941313337,0.76,2.9266819280756229]
[null,46.7,13.5,25.108763410411115,0.74,2.7996506490611184]
[null,46.7,26.9,35.443335057525275,0.78,3.0990691605685203]
[null,76,0.26400000000000001,4.4792856573342137,0.82,1.3024175191506224]
[null,192,0.26400000000000001,7.119550547611837,0.82,1.7049051555733807]
[null,114,0.26400000000000001,5.4859821363179808,0.84,1.4785087782063036]
[null,153,0.26400000000000001,6.3554700848953729,0.85,1.6062953576874299]
[null,422,0.26400000000000001,10.554998815727076,0.96,2.0469163778315047]
[]
[]
[null,12,0.125,{"$f":"(B95*C95)^0.5","v":1.2247448713915889},0.39,{"$f":"LOG(B95*C95)","v":0.17609125905568124}]
[]
[null,8,0.91,{"$f":"(B97*C97)^0.5","v":2.6981475126464085},0.42,{"$f":"LOG(B97*C97)","v":0.86213137931303718}]
[null,8,1.87,{"$f":"(B98*C98)^0.5","v":3.8678159211627432},0.49,{"$f":"LOG(B98*C98)","v":1.1749315935284426}]
[null,8,2.1,{"$f":"(B99*C99)^0.5","v":4.0987803063838397},0.56999999999999995,{"$f":"LOG(B99*C99)","v":1.2253092817258628}]

{"sheet":"Predicted t10","index":10,"n_rows":49,"n_cols":34,"rows_kept":49,"cut":false,"hidden":false,"merged":[]}
[]
[null,"Baffled Tanks"]
[null,"Predicted t10/HRT based on "]
[null,"the following data"]
[]
[null,null,"Set 1","Set 2","Set 3","Set 4","New","Set 5",null,null,null,null,null,null,null,null,null,null,null,null,null,null,null,null,null,null,null,null,null,null,null,"Set 1",null,"Set 3"]
[null,null,"R2 = 0.735","R2 = 0.747","R2 = 0.742","R2 = 0.83","Log(L:W * Vel)","R2 = 0.763",null,null,null,null,null,null,null,null,null,null,null,null,null,null,null,null,null,null,null,null,null,null,null,"R2 = 0.76",null,"R2 = 0.76"]
[null,null,"n = 31","n = 11","n = 25","n = 7","Vel: ft/min","n = 33",null,null,null,null,null,null,null,null,null,null,null,null,null,null,null,null,null,null,null,null,null,null,null,null,null,"n = 3"]
[null,"L//W","t10/HRT","t10/HRT","t10/HRT","t10/HRT",null,"t10/HRT",null,null,null,null,null,null,null,null,null,null,null,null,null,null,null,null,null,null,null,null,null,null,null,"T10/T",null,"t10/T"]
[null,4,{"$f":"0.1822*B10^0.3237","v":0.28538766084866252},{"$f":"0.1605*B10^0.352","v":0.26145692774553914},{"$f":"0.1543*B10^0.3751","v":0.25953661066749584},{"$f":"0.1091*LN(B10)+0.1835","v":0.33474471479818002},0.7,{"$f":"0.2118*G10+0.1935","v":0.34175999999999995},null,null,null,null,null,null,null,null,null,null,null,null,null,null,null,null,null,null,null,null,null,null,null,{"$f":"0.1425*LN(B10)+0.0741","v":0.27164694645958443},null,{"$f":"0.1798*LN(B10)-0.0015","v":0.24775572612935631}]
[null,{"$f":"B10+2","v":6},{"$f":"0.1822*B11^0.3237","v":0.32541377454839349},{"$f":"0.1605*B11^0.352","v":0.30156732027535665},{"$f":"0.1543*B11^0.3751","v":0.30216938459244341},{"$f":"0.1091*LN(B11)+0.1835","v":0.37898095809278076},0.75,0.35235,null,null,null,null,null,null,null,null,null,null,null,null,null,null,null,null,null,null,null,null,null,null,null,0.32942572436499779,null,0.32065835256720426]
[null,{"$f":"B11+2","v":8},0.35717298343721748,0.33370499869126441,{"$f":"0.1543*B12^0.3751","v":0.33660067316584036},0.41036707219727009,0.8,0.36294000000000004,null,null,null,null,null,null,null,null,null,null,null,null,null,null,null,null,null,null,null,null,null,null,null,0.37042041968937656,null,0.37238358919403441]
[null,10,0.38392675009395683,0.36097326423664289,{"$f":"0.1543*B13^0.3751","v":0.36598722475499784},0.43471203364565042,0.85,0.37353000000000003,null,null,null,null,null,null,null,null,null,null,null,null,null,null,null,null,null,null,null,null,null,null,null,0.40221837575165154,null,0.41250479972032944]
[null,12,0.40726711295570184,0.38489904660609253,0.39189237311197689,0.45460331549187083,0.9,0.38412000000000002,null,null,null,null,null,null,null,null,null,null,null,null,null,null,null,null,null,null,null,null,null,null,null,0.42819919759479003,null,0.44528621563188242]
[null,14,0.42810472165713165,0.40636107944447408,0.41522027548170154,0.47142115466102469,0.95,0.39471000000000001,null,null,null,null,null,null,null,null,null,null,null,null,null,null,null,null,null,null,null,null,null,null,null,0.45016566947017428,null,0.47300250786482345]
[null,16,0.44701491199051152,0.42591729013168889,0.43654732518970391,0.4859894295963601,1,0.40529999999999999,null,null,null,null,null,null,null,null,null,null,null,null,null,null,null,null,null,null,null,null,null,null,null,0.4691938929191688,null,0.49701145225871263]
[null,18,0.46438703089767097,0.44394682926323537,0.45626656256765563,0.49883955878647157,1.05,0.41588999999999998,null,null,null,null,null,null,null,null,null,null,null,null,null,null,null,null,null,null,null,null,null,null,null,0.48597797550020339,null,0.51818884206973037]
[null,20,0.48049821896515332,0.46072056192332256,0.47465960931599088,0.51033439104474043,1.1000000000000001,0.42647999999999997,null,null,null,null,null,null,null,null,null,null,null,null,null,null,null,null,null,null,null,null,null,null,null,0.50099184898144367,null,0.5371326627850076]
[null,22,0.49555355316829475,0.47643956602981991,0.49193607718163107,0.52073273166139233,1.1499999999999999,0.43706999999999996,null,null,null,null,null,null,null,null,null,null,null,null,null,null,null,null,null,null,null,null,null,null,null,0.51457354960355994,null,0.55426943311382526]
[null,24,0.50970952758671806,0.49125772627819181,0.50825675907067913,0.5302256728909609,1.2,0.44766,null,null,null,null,null,null,null,null,null,null,null,null,null,null,null,null,null,null,null,null,null,null,null,0.52697267082458221,null,0.56991407869656063]
[null,26,0.52308858807384406,0.50529576138743781,0.5237480618900836,0.53895833229814372,1.25,0.45824999999999999,null,null,null,null,null,null,null,null,null,null,null,null,null,null,null,null,null,null,null,null,null,null,null,0.53837875666806112,null,0.58430575753626246]
[null,28,0.5357885488220957,0.51865033622736989,0.53851140261018404,0.5470435120601147,1.3,0.46883999999999998,null,null,null,null,null,null,null,null,null,null,null,null,null,null,null,null,null,null,null,null,null,null,null,0.54893914269996658,null,0.59763037092950166]
[null,30,{"$f":"0.1822*B23^0.3237","v":0.54788892635462316},{"$f":"0.1605*B23^0.352","v":0.53140020596506632},0.55262955645843037,0.55457063433934117,1.35,0.47943000000000002,null,null,null,null,null,null,null,null,null,null,null,null,null,null,null,null,null,null,null,null,null,null,null,0.55877062688685708,null,0.61003528922285555]
[null,32,{"$f":"0.1822*B24^0.3237","v":0.55945533623208332},{"$f":"0.1605*B24^0.352","v":0.54361049053674249},0.56617108141192307,0.56161178699545022,1.4,0.49001999999999996,null,null,null,null,null,null,null,null,null,null,null,null,null,null,null,null,null,null,null,null,null,null,null,0.56796736614896104,null,0.6216393153233909]
[null,34,0.57054262783609855,0.55533572858906044,0.57919348466283616,0.5682259332356232,1.45,0.50061,null,null,null,null,null,null,null,null,null,null,null,null,null,null,null,null,null,null,null,null,null,null,null,0.57660637475780296,null,0.63253962232598582]
[null,36,0.58119717160171602,0.56662211001906249,0.59174554105622801,0.57446191618556153,1.5,0.51119999999999999,null,null,null,null,null,null,null,null,null,null,null,null,null,null,null,null,null,null,null,null,null,null,null,0.58475144872999563,null,0.64281670513440858]
[null,38,0.59145856173693845,0.57750914097207839,0.60386902469121551,0.58036065002614867,1.55,0.52178999999999998,null,null,null,null,null,null,null,null,null,null,null,null,null,null,null,null,null,null,null,null,null,null,null,0.59245602776100981,null,0.65253799151880421]
[null,40,0.60136090640254303,0.58803090757377774,0.61560002501954103,0.58595674844383039,1.6,0.53238000000000008,null,null,null,null,null,null,null,null,null,null,null,null,null,null,null,null,null,null,null,null,null,null,null,0.5997653222112358,null,0.6617605258496857]
[null,42,0.61093382073186953,0.59821705014534365,0.62696996275104688,0.59127975535471555,1.65,0.54296999999999995,null,null,null,null,null,null,null,null,null,null,null,null,null,null,null,null,null,null,null,null,null,null,null,0.60671792060537988,null,0.67053299736734961]
[null,44,0.62020320188928424,0.60809352473224054,0.6380063849490567,0.59635508906048229,1.7,0.55356000000000005,null,null,null,null,null,null,null,null,null,null,null,null,null,null,null,null,null,null,null,null,null,null,null,0.61334702283335218,null,0.67889729617850336]
[null,46,0.62919184164765463,0.61768320585008563,0.64873359507937833,0.60120477635696035,1.75,0.56414999999999993,null,null,null,null,null,null,null,null,null,null,null,null,null,null,null,null,null,null,null,null,null,null,null,0.6196813989996961,null,0.6868897230887393]
[null,48,0.63791991606485055,0.62700636895835526,0.6591731578997031,0.60584803029005085,1.8,0.57474000000000003,null,null,null,null,null,null,null,null,null,null,null,null,null,null,null,null,null,null,null,null,null,null,null,0.62574614405437434,null,0.69454194176123885]
[null,50,0.64640538096372402,0.63608108062931068,0.66934430818860746,0.61030170989221078,1.85,0.58533000000000002,null,null,null,null,null,null,null,null,null,null,null,null,null,null,null,null,null,null,null,null,null,null,null,0.63156327827351078,null,0.70188173637598061]
[null,52,0.65466429434512896,0.64492351702611683,0.67926428471151057,0.61458068969723367,1.9,0.59592000000000001,null,null,null,null,null,null,null,null,null,null,null,null,null,null,null,null,null,null,null,null,null,null,null,0.63715222989785336,null,0.70893362060094067]
[null,54,0.6627110814999736,0.65354822609068319,0.68894860542569514,0.61869815948016238,1.95,0.60650999999999999,null,null,null,null,null,null,null,null,null,null,null,null,null,null,null,null,null,null,null,null,null,null,null,0.64253022663540915,null,0.71571933157225653]
[null,56,0.67055875473104587,0.66196834508980162,0.69841129603982366,0.62266586945920488,2,0.61709999999999998,null,null,null,null,null,null,null,null,null,null,null,null,null,null,null,null,null,null,null,null,null,null,null,0.64771261592975882,null,0.72225823399417988]
[null,58,0.67821909678586523,0.67019578243073041,0.70766508120491689,0.62649433245061426,2.0499999999999998,0.62768999999999997,null,null,null,null,null,null,null,null,null,null,null,null,null,null,null,null,null,null,null,null,null,null,null,0.65271312900286471,null,0.72856765329624618]
[null,60,0.6857028150283877,0.67824137063484491,0.71672154551467238,0.63019299173843124,2.1,0.63827999999999996,null,null,null,null,null,null,null,null,null,null,null,null,null,null,null,null,null,null,null,null,null,null,null,0.65754410011664932,null,0.73466315228753365]
[null,62,0.69301967182921187,0.68611499584615887,0.72559126992254419,0.63377036140841958,2.15,0.64886999999999995,null,null,null,null,null,null,null,null,null,null,null,null,null,null,null,null,null,null,null,null,null,null,null,0.66221664986892548,null,0.74055876243110752]
[null,64,0.70017859548541606,0.69382570810926336,0.73428394799544316,0.63723414439454018,2.2000000000000002,0.65945999999999994,null,null,null,null,null,null,null,null,null,null,null,null,null,null,null,null,null,null,null,null,null,null,null,0.66674083937875306,null,0.74626717838806889]
[null,66,0.70718777509030184,0.70138181577950887,0.74280848551687717,0.64059133235508292,2.25,0.67005000000000003,null,null,null,null,null,null,null,null,null,null,null,null,null,null,null,null,null,null,null,null,null,null,null,0.67112580073876549,null,0.7517999226163512]
[null,68,0.71405474208778985,0.70879096675680497,0.75117308625312862,0.64384829063471327,2.2999999999999998,0.68063999999999991,null,null,null,null,null,null,null,null,null,null,null,null,null,null,null,null,null,null,null,null,null,null,null,0.67537984798759521,null,0.75716748539066403]
[null,70,0.72078644071408027,0.71606021871271808,0.7593853261523914,0.64701083090758504,2.35,0.69123000000000001,null,null,null,null,null,null,null,null,null,null,null,null,null,null,null,null,null,null,null,null,null,null,null,0.67951057199203357,null,0.76237944452047479]
[null,72,0.72738928911274348,0.7231961000718935,0.76745221782059803,0.65008427358465171,2.4,0.70182,null,null,null,null,null,null,null,null,null,null,null,null,null,null,null,null,null,null,null,null,null,null,null,0.68352492195978787,null,0.7674445681990868]
[null,74,0.73386923258101,0.73020466318629451,0.77538026678104499,0.65307350166857492,2.4500000000000002,0.71240999999999999,null,null,null,null,null,null,null,null,null,null,null,null,null,null,null,null,null,null,null,null,null,null,null,0.6874292757815943,null,0.77237090375810979]
[null,76,0.74023179014418861,0.73709153088435897,0.78317552075715335,0.65598300742523874,2.5,0.72299999999999998,null,null,null,null,null,null,null,null,null,null,null,null,null,null,null,null,null,null,null,null,null,null,null,0.69122950099080205,null,0.77716585458348231]
[null,78,0.74648209544658495,0.74386193737198703,0.790843613003262,0.65881693299183453,2.5499999999999998,0.73358999999999996,null,null,null,null,null,null,null,null,null,null,null,null,null,null,null,null,null,null,null,null,null,null,null,0.69493100780326666,null,0.78183624703878862]
[null,80,0.75262493277943754,0.75052076429701142,0.79838980053551512,0.66157910584292046,2.6,0.74417999999999995,null,null,null,null,null,null,null,null,null,null,null,null,null,null,null,null,null,null,null,null,null,null,null,0.69853879544102804,null,0.7863883889143638]
[null,82,0.75866476893051782,0.75707257265491967,0.80581899797481349,0.66427306987653001,2.65,0.75476999999999994,null,null,null,null,null,null,null,null,null,null,null,null,null,null,null,null,null,null,null,null,null,null,null,0.70205749273515594,null,0.7908281206581127]

{"sheet":"Definition","index":11,"n_rows":28,"n_cols":3,"rows_kept":28,"cut":false,"hidden":false,"merged":[]}
[]
[]
[null,"Performance parameters commonly used in conventional "]
[null,"conventional analysis of contact basins."]
[]
[null,"Parameter","Definition"]
[]
[null,"HRT","Hydraulic Residence Time (HRTor T)"]
[null,"t10, t50, t90","Time for 10, 50, and 90 percent of the tracer to"]
[null,null,"pass through the reactor."]
[]
[null,"t10/HRT","Index of short-circuiting"]
[null,"t50/HRT","Index of mean detention time"]
[]
[null,"t90/t10","Morril dispersion index, indicates degree of"]
[null,null,"mixing, as t90/t10 increases the degree of mixing"]
[null,null,"increases.  Likewise, as t90/t10 approaches 1.0 "]
[null,null,"plug flow conditions are observed."]
[]
[null,"d","Dispersion index, indicates degree of tracer"]
[null,null,"dispersion.  Under ideal plug flow conditions, "]
[null,null,"the value of d should approach zero."]
[null,null,"The dispersion index calculation includes all points"]
[null,null,"of the dispersion curve."]
[]
[null,"L/W","Length to width ratio of flow.  Length is the total"]
[null,null,"flow travel in the baffled channel divided by the "]
[null,null,"width of the channel."]

{"sheet":"Reference","index":12,"n_rows":252,"n_cols":3,"rows_kept":252,"cut":false,"hidden":false,"merged":[]}
[]
[null,"References"]
[]
[]
[null,"1.","Marske, M. Donald & Boyle, D. Jerry.  Chlorine Contact Chamber Design - A Field Evaluation.  "]
[null,null,"Water and Sewage Works, 120:1:70 (Jan. 1973)."]
[]
[null,"2.","Bishop, M. Mark; Morgan, M; Cornwell, Brendon & Jamison, K. Donald.  Improving the Disinfection"]
[null,null,"Detention Time of a Water Plant Clearwell.  Jour. AWWA, 85:3:68 (March 1993)."]
[]
[null,"3.","Schott, J. Guy & Rezvani, R. Ali.  Department of Health Services,"]
[null,null,"Drinking Water Field Operations Branch, Santa Rosa, CA.  "]
[null,null,"Millview County Water District, Water Treatment Plant Tracer Study, (February 1996)."]
[]
[null,"4.","California Cities Water Company, Sonoma Water Treatment Plant Tracer Study, (1996)."]
[]
[null,"5.","Schott, J. Guy & Rezvani, R. Ali.  Department of Health Services,"]
[null,null,"Drinking Water Field Operations Branch, Santa Rosa, CA.  "]
[null,null,"City of Cloverdale, Water Treatment Plant Tracer Study, (August 1996)."]
[]
[null,"6.","Montgomery Watson. Stockton East Water District Tracer Study, (September 1997)."]
[]
[null,"7.","Schott, J. Guy; Zensius, David & Crevistion, Stacy.  Department of Health Services,"]
[null,null,"Drinking Water Field Operations Branch, Santa Rosa, CA.  "]
[null,null,"City of American Canyon Tracer Study, (October 1997)."]
[]
[null,"8.","Fleege, Niles.  City of Fairfield Water Treatment Plant"]
[null,null,"Tracer Study, (1997)."]
[]
[null,"9.","Schott, J. Guy & Lambeth, Debra.  Department of Health Services,"]
[null,null,"Drinking Water Field Operations Branch, Santa Rosa, CA.  "]
[null,null,"California Cities Water Company, Sonoma Water Treatment Plant Tracer Study, (November 1997)."]
[]
[null,"10.","City of San Diego. Clearwell Tracer Study for the Alvarado, Otay and Miramar"]
[null,null,"Water Treatment Plants, (November 1997)."]
[]
[null,"11.","Schott, J. Guy & Rezvani, R. Ali.  Department of Health Services,"]
[null,null,"Drinking Water Field Operations Branch, Santa Rosa, CA.  "]
[null,null,"Konocti Harbor Resort & Spa, Water Treatment Plant Tracer Study, (October 1998)."]
[]
[null,"12.","Carollo Engineers. Sweetwater Authority, Robert Perdue WTP Clear Well"]
[null,null,"Tracer Study, (January 1999)."]
[]
[null,"13.","Schott, J. Guy; Rezvani, R. Ali & Oakley, Janice.  Department of Health Services,"]
[null,null,"Drinking Water Field Operations Branch, Santa Rosa, CA.  "]
[null,null,"City of Napa, Hennessey Water Treatment Plant Tracer Study, (July 1999)."]
[]
[null,"14.","Schott, J. Guy; Gjestland, Wendy & Watada, Marianne.  Department of Health Services,"]
[null,null,"Drinking Water Field Operations Branch, Santa Rosa, CA.  "]
[null,null,"Veterans Home of California Tracer Study, (September 2001)."]
[]
[null,"15.","Schott, J. Guy; Gjestland, Wendy & Burton, H. Bruce.  Department of Health Services,"]
[null,null,"Drinking Water Field Operations Branch, Santa Rosa, CA.  "]
[null,null,"Murphys Sanitary District Tracer Study, (January 30, 2003)."]
[]
[null,"16.","Schott, J. Guy, Watada, Marianne & Carter, Chris.  Department of Health Services,"]
[null,null,"Drinking Water Field Operations Branch, Santa Rosa, CA.  "]
[null,null,"Sereno Del Mar Water Treatment Plant Tracer Study, (September 11, 2003)."]
[null,null,"4,800 Gallon Clearwell Tracer Study"]
[]
["`","17.","Kern County Water Agency.  Clearwell Tracer Study For Impovement District No. 4"]
[null,null,"Henry C. Garnett Water Purification Plant, (March 17 & July 21, 2004)."]
[]
[null,"18.","Western Hills Water District.  Diablo Grande Water Supply and "]
[null,null,"Treatment Facilities Tracer Study, (March 8 and June 8 & 9, 2005)."]
[]
[null,"19.","Hagen Enginering International, Inc., "]
[null,null,"City of Clovis Public Utilites Department, (April 7, 2005)."]
[]
[null,"20.","Schott, J. Guy & Burton, H. Bruce.  Department of Health Services,"]
[null,null,"Drinking Water Field Operations Branch, Santa Rosa, CA.  "]
[null,null,"Robert Moorhead & Glenn Knapp, City of Fresno, CA."]
[null,null,"City of Fresno (North Treatment Plant) Ozone Tracer Study, (October 20 & 21, 2005)."]
[]
[null,"21.","Seldon, Brenda & Tuolumne Utilities District Staff.  "]
[null,null,"Sonora, CA"]
[null,null,"Tuolumne Utilities District Tracer Study, (May 23, 2006)."]
[]
[null,"22.","Schott, J. Guy, Little, Amy & Frederich, Michelle.  Department of Health Services,"]
[null,null,"Drinking Water Field Operations Branch, Santa Rosa, CA.  "]
[null,null,"Melluish, Robert, Brooktrails Township CSD Tracer Study, (November 1, 2006)."]
[null,null,"50,000 & 160,000 Gallon Clearwells Tracer Study"]
[]
[null,"23.","Black & Veatch"]
[null,null,"3 MG Clearwell Tracer Study"]
[null,null,"Northwest Bakersfield Water Treatment Plant, (September 11, 2007)."]
[]
[null,"24.","Schott, J. Guy & Kroll, Wendy Jo.  California Department of Public of Health,"]
[null,null,"Drinking Water Field Operations Branch, Santa Rosa, CA.  "]
[null,null,"Jamison, Alan, City of Ukiah Tracer Study, (October 10, 2007)."]
[null,null,"119,000 Gallon Clearwell (at 10-ft level) Tracer Study"]
[]
[null,"25.","Schott, J. Guy & Amy Little.  California Department of Public of Health,"]
[null,null,"Drinking Water Field Operations Branch, Santa Rosa, CA.  "]
[null,null,"Berryessa Pines Tracer Study, (October 19, 2007)."]
[null,null,"13,790 Gallon Clearwell Tracer Study"]
[]
[null,"26.","HDR. City of Yuba City Tracer Study, (November 20, 2007)."]
[null,null,"4 MG Clearwell Tracer Study"]
[]
[null,"27.","Schott, J. Guy, Bruce Burton & Reese Crenshaw.  California Department of Public of Health,"]
[null,null,"Drinking Water Field Operations Branch, Santa Rosa, CA.  "]
[null,null,"City of Yuba City Tracer Study, (February 26 & October 19, 2008)."]
[null,null,"4 MG Clearwell Tracer Study"]
[]
[null,"28.","HDR. Stockton East Water District Tracer Study, (June 2008 Report)."]
[null,null,"10.5 MG Clearwell Tracer Study"]
[]
[null,"29.","Schott, J. Guy.  California Department of Public of Health,"]
[null,null,"Drinking Water Field Operations Branch, Santa Rosa, CA.  "]
[null,null,"Five Points Tracer Studies, (November 19-21, 2008)."]
[]
[null,"30.","WQTS. R.E. Badger Water Filtration Plant Tracer Study, (June 29 2012 Report)."]
[null,null,"12 MG Clearwell Tracer Study"]
[]
[null,"31.","Carollo Engineers.  City of Lodi 3.0 MG Clearwell Tracer Study, (October 2013 Report)."]
[]
[null,"32.","Black & Veatch Corporation.  SEWD - WTP Clearwells in Series Tracer Study, "]
[null,null,"(May 1, 2014, June 24, 2014, September 9, 2014)."]
[]
[null,"33.","Schott, J. Guy.  State Water Resources Control Board"]
[null,null,"Division of Drinking Water, Santa Rosa, CA.  "]
[null,null,"Howell Moutain MWC Tracer Study, (July 7, 14, 23 & 28, Sept 29 and Oct 13, 2015)."]
[null,null,"500,000 Gallon Clearwell Tracer Study"]
[]
[null,"34.","Schott, J. Guy.  State Water Resources Control Board, Eval Luu (intern) & Hector Cazares"]
[null,null,"Division of Drinking Water, Santa Rosa, CA.  "]
[null,null,"Lake County CSA 2 - Spring Valley Tracer Study, (August 13 & 25, 2015)."]
[null,null,"384,900 Gallon Clearwell Tracer Study - Modified Step-Dose"]
[]
[null,"35.","Schott, J. Guy.  & Stufkosky, Karen, State Water Resources Control Board"]
[null,null,"Division of Drinking Water, Santa Rosa, CA.  "]
[null,null,"Buckingham Water District (Lake County)- Tracer Study, (Feb 10, 2016 & May 8, 2017)."]
[null,null,"200,000 Gallon Single Baffled Clearwell Tracer Study - Modified Step-Dose"]
[]
[null,"36.","Schott, J. Guy.  State Water Resources Control Board"]
[null,null,"Division of Drinking Water, Santa Rosa, CA.  "]
[null,null,"City of Stockton (Lodi Membrane Plant)- Tracer Study, (Feb 22 & 23, 2016)."]
[null,null,"48,540 Gallon Ozone Pipeline Tracer Study - Modified Step-Dose"]
[]
[null,"37.","Schott, J. Guy.  State Water Resources Control Board"]
[null,null,"Division of Drinking Water, Santa Rosa, CA.  "]
[null,null,"Harris Farms/Horse Barn Tracer Study, (April 10, 2016)."]
[null,null,"274,700 Gallon Operating Level Clearwell Tracer Study"]
[]
[null,"38.","Schott, J. Guy.  & Stufkosky, Karen, State Water Resources Control Board"]
[null,null,"Division of Drinking Water, Santa Rosa, CA.  "]
[null,null,"Airport-Larkfield-Wiliup Sanitation Tracer Study,  Sonoma County (August 23, 2016)."]
[null,null,"Serpentine Chlorine Contact Basin for determining Modal Contact Time. "]
[null,null,"Tracer Study - Sludge-Dose"]
[]
[null,"39.","Schott, J. Guy.  & Little, Amy, State Water Resources Control Board"]
[null,null,"Division of Drinking Water, Santa Rosa, CA.  "]
[null,null,"City of Fairfield Tracer Study,  Solano County (May 8, 2017)."]
[null,null,"Tracer Study - Step-Dose"]
[]
[null,"40.","Schott, J. Guy.  & Little, Amy, State Water Resources Control Board"]
[null,null,"Division of Drinking Water, Santa Rosa, CA.  "]
[null,null,"Gibson Canyon Tracer Study,  Solano County (May 8, 2017)."]
[null,null,"Tracer Study - Modified Step-Dose"]
[]
[null,"41.","Schott, J. Guy.  & Kent, Aaron, State Water Resources Control Board"]
[null,null,"Division of Drinking Water, Santa Rosa, CA.  "]
[null,null,"Gualala CSD Tracer Study,  Sonoma County (May 15 & July 20, 2017)."]
[null,null,"Tracer Study - Slug-Dose"]
[]
[null,"42","Schott, J. Guy, State Water Resources Control Board"]
[null,null,"Division of Drinking Water, Santa Rosa, CA.  "]
[null,null,"Gualala CSD Tracer Study,  Sonoma County (August 9, 2017)."]
[null,null,"Tracer Study - Slug-Dose"]
[]
[null,"43","Schott, J. Guy., State Water Resources Control Board"]
[null,null,"Division of Drinking Water, Santa Rosa, CA.  "]
[null,null,"Graton CSD Tracer Study,  Sonoma County (May 30, 2018)."]
[null,null,"Tracer Study - Slug-Dose"]
[]
[null,"44","Schott, J. Guy., State Water Resources Control Board"]
[null,null,"Division of Drinking Water, Santa Rosa, CA.  "]
[null,null,"City of Napa, Hennessey Water Treatment Plant Tracer Study, (July 17, 2018)."]
[null,null,"Tracer Study -Modified Step-Dose"]
[]
[null,"45","Schott, J. Guy., State Water Resources Control Board"]
[null,null,"Division of Drinking Water, Santa Rosa, CA.  "]
[null,null,"Garberville Sanitary District Water Treatment Plant Tracer Study, (Sept 30-Sept 31, 2018)."]
[null,null,"Tracer Study -Slug-Dose & Modified Step-Dose"]
[]
[null,"46","Schott, J. Guy., State Water Resources Control Board"]
[null,null,"Division of Drinking Water, Santa Rosa, CA.  "]
[null,null,"North Gualala Water Treatment Plant Tracer Study, (November 15, 2018)."]
[null,null,"Tracer Study -Slug-Dose "]
[]
[null,"47","Schott, J. Guy., State Water Resources Control Board"]
[null,null,"Division of Drinking Water, Santa Rosa, CA.  "]
[null,null,"Garberville Sanitary District Water Treatment Plant Tracer Study, (February 4, 2019)."]
[null,null,"Tracer Study -Modified Step-Dose"]
[]
[null,"48","Schott, J. Guy., State Water Resources Control Board"]
[null,null,"Division of Drinking Water, Santa Rosa, CA.  "]
[null,null,"Modesto Irrigation District, Ozone Contactor Tracer Study, (February 26 - 27, 2019)."]
[null,null,"Tracer Study -Slug-Dose "]
[]
[null,"49","Schott, J. Guy., State Water Resources Control Board"]
[null,null,"Division of Drinking Water, Santa Rosa, CA.  "]
[null,null,"Georgetown Divide PUD Underground Serpentine Chlorine Contact Basin Tracer Study, (July 12, 2019)."]
[null,null,"Tracer Study -Slug-Dose "]
[]
[null,"50","Schott, J. Guy., State Water Resources Control Board"]
[null,null,"Division of Drinking Water, Santa Rosa, CA.  "]
[null,null,"City of Fresno, South Water Treatment Plant 8 MG Clearwell Tracer Study, (July 29, 2019)."]
[null,null,"Tracer Study -Modified Step-Dose"]
[]
[null,"51","Schott, J. Guy., State Water Resources Control Board"]
[null,null,"Division of Drinking Water, Santa Rosa, CA.  "]
[null,null,"City of Fresno, South Water Treatment Plant, Ozone Contactor Tracer Study, (Aug 19, 2019 & Jan 8, 2020)."]
[null,null,"Tracer Study -Slug-Dose"]
[]
[null,"52","Schott, J. Guy., State Water Resources Control Board"]
[null,null,"Division of Drinking Water, Santa Rosa, CA.  "]
[null,null,"Kettleman City, Water Treatment Plant 115,730 gallons Clearwell Tracer Study, (November 21, 2019)."]
[null,null,"Tracer Study -Modified Step-Dose"]
[]
[null,"53","Schott, J. Guy., State Water Resources Control Board"]
[null,null,"Division of Drinking Water, Santa Rosa, CA.  "]
[null,null,"South Feather Water & Power Agency (SFWPA) 1,636,362 gallons Clearwell Tracer Study, (June 4, 2020)."]
[null,null,"Tracer Study -Modified Step-Dose"]
[]
[null,"54","Schott, J. Guy.  State Water Resources Control Board"]
[null,null,"Division of Drinking Water, Santa Rosa, CA.  "]
[null,null,"Cement Hill Tracer Study,  Solano County, Transmission Line + 2.0 MG Tank 2A + 2.0 MG Tank 2B (July 30, 2020)."]
[null,null,"Tracer Study -Modified Step-Dose"]
[]
[null,"55","Schott, J. Guy.  State Water Resources Control Board"]
[null,null,"Division of Drinking Water, Santa Rosa, CA.  "]
[null,null,"Konocti Harbor Resort, Water Treatment Plant Tracer Study, Clearwell 21,450 gallons, (April 23, 2021)."]
[null,null,"Tracer Study -Modified Step-Dose"]
[]
[null,"56","Schott, J. Guy.  & Little, Amy, State Water Resources Control Board"]
[null,null,"Division of Drinking Water, Santa Rosa, CA.  "]
[null,null,"City of Fairfield Tracer Study,  Solano County (July 23, 2021)."]
[null,null,"Ozone Contact Basin (6.0 MGD, over and under flow)"]
[null,null,"Tracer Study - Slug-Dose"]
[]
[null,"57","Schott, J. Guy, State Water Resources Control Board"]
[null,null,"Division of Drinking Water, Santa Rosa, CA.  "]
[null,null,"Gualala CSD Tracer Study,  Sonoma County (October 28, 2021)."]
[null,null,"Tracer Study - Slug-Dose"]
[]
[null,"58","Schott, J. Guy, State Water Resources Control Board"]
[null,null,"Division of Drinking Water, Santa Rosa, CA.  "]
[null,null,"Clearlake Oaks CSD Tracer Study,  Lake County (February 10, 2022)."]
[null,null,"Tank Farm (19 x 10K Poly Tanks in Series)"]
[null,null,"Tracer Study -Modified Step-Dose"]